Workbook

Sheet Simulation
A1: Court | E1: dt | F1: t | G1: x | H1: z | I1: px | J1: pz | K1: p | L1: Fd | M1: n1 | N1: n2 | O1: n3 | P1: Fn1 | Q1: Fn2 | R1: Fn3 | S1: ω1 | T1: ω2 | U1: ω3 | V1: ω | W1: E | X1: Fx | Y1: Fz
A2: Short Line (depth) | B2: 5.465 | C2: m | E2: =IF(OR(G2<=_r,G2>=backwall-_r,H2<=_r),dt_small,dt) -> 0.0005 | F2: 0 | G2: =shortline+x0 -> 5.465 | H2: =z0 -> 1 | I2: =-K2*COS(a0*PI()/180) -> -0.3946516377 | J2: =K2*SIN(a0*PI()/180) -> 0.1757102298 | K2: =_m*v0 -> 0.432 | L2: =_kd*K2*K2 -> 0.114816415 | M2: =MAX(_r-G2,0) -> 0 | N2: =MAX(_r-H2,0) -> 0 | O2: =MAX(G2-backwall+_r,0) -> 0 | P2: =IF(I2<0,M2*(_ks+hyst),M2*(_ks-hyst)) -> 0 | Q2: =IF(J2<0,N2*(_ks+hyst),N2*(_ks-hyst)) -> 0 | R2: =IF(I2>0,O2*(_ks+hyst),O2*(_ks-hyst)) -> 0 | V2: =-spin*PI()*2 -> -314.1592654 | W2: =0.5*K2*K2/_m+0.5*_I*V2*V2 -> 4.149070128 | X2: =-L2*I2/K2+P2-R2+_km*V2*J2 -> 0.08188959912 | Y2: =-_m*_g-L2*J2/K2+Q2-_km*V2*I2 -> -0.3337998218
A3: Service Box (depth) | B3: 7.115 | C3: m | D3: =IF(AND(M3=0,M4>0),"in1",IF(AND(M3=0,M2>0),"out1",IF(AND(N3=0,N4>0),"in2",IF(AND(N3=0,N2>0),"out2",IF(AND(O3=0,O4>0),"in3",IF(AND(O3=0,O2>0),"out3","")))))) ->  | E3: 0.0005 | F3: =F2+E2 -> 0.0005 | G3: =G2+$E2*I2/_m -> 5.456778091 | H3: =H2+$E2*J2/_m -> 1.00366063 | I3: =I2+$E2*X2 -> -0.3946106929 | J3: =J2+$E2*Y2 -> 0.1755433299 | K3: =SQRT(I3*I3+J3*J3) -> 0.4318947321 | L3: 0.1147604659 | M3: 0 | N3: 0 | O3: 0 | P3: 0 | Q3: 0 | R3: 0 | S3: =IF(AND(M3=0,M2>0),-J3/_m/_r,0) -> 0 | T3: =IF(AND(N3=0,N2>0),I3/_m/_r,0) -> 0 | U3: =IF(AND(O3=0,O2>0),J3/_m/_r,0) -> 0 | V3: =IF(AND(S3=0,T3=0,U3=0),V2,S3+T3+U3) -> -314.1592654 | W3: 4.147175537 | X3: 0.08187500751 | Y3: -0.3337387348
A4: Back Wall (depth) | B4: 9.75 | C4: m | D4: =IF(AND(M4=0,M5>0),"in1",IF(AND(M4=0,M3>0),"out1",IF(AND(N4=0,N5>0),"in2",IF(AND(N4=0,N3>0),"out2",IF(AND(O4=0,O5>0),"in3",IF(AND(O4=0,O3>0),"out3","")))))) ->  | E4: 0.0005 | F4: =F3+E3 -> 0.001 | G4: =G3+$E3*(3*I3-I2)/2/_m -> 5.448557461 | H4: =H3+$E3*(3*J3-J2)/2/_m -> 1.007316044 | I4: =I3+$E3*(3*X3-X2)/2 -> -0.394569759 | J4: =J3+$E3*(3*Y3-Y2)/2 -> 0.1753764758 | K4: =SQRT(I4*I4+J4*J4) -> 0.4317895356 | L4: 0.1147045683 | M4: 0 | N4: 0 | O4: 0 | P4: 0 | Q4: 0 | R4: 0 | S4: 0 | T4: 0 | U4: 0 | V4: =IF(AND(S4=0,T4=0,U4=0),V3,S4+T4+U4) -> -314.1592654 | W4: 4.145282691 | X4: 0.08186043544 | Y4: -0.3336776908
A5: Tin (height) | B5: 0.455 | C5: m | E5: 0.0005 | F5: 0.0015 | G5: =G4+$E4*(23*I4-16*I3+5*I2)/12/_m -> 5.440337684 | H5: =H4+$E4*(23*J4-16*J3+5*J2)/12/_m -> 1.010967983 | I5: =I4+$E4*(23*X4-16*X3+5*X2)/12 -> -0.3945288325 | J5: =J4+$E4*(23*Y4-16*Y3+5*Y2)/12 -> 0.1752096522 | K5: 0.4316844008 | L5: 0.1146487172 | M5: 0 | N5: 0 | O5: 0 | P5: 0 | Q5: 0 | R5: 0 | S5: 0 | T5: 0 | U5: 0 | V5: -314.1592654 | W5: 4.143391417 | X5: 0.0818458816 | Y5: -0.333616684
A6: Service Line (height) | B6: 1.805 | C6: m | E6: 0.0005 | F6: 0.002 | G6: 5.43211876 | H6: 1.014616446 | I6: -0.3944879132 | J6: 0.1750428591 | K6: 0.4315793278 | L6: 0.1145929124 | M6: 0 | N6: 0 | O6: 0 | P6: 0 | Q6: 0 | R6: 0 | S6: 0 | T6: 0 | U6: 0 | V6: -314.1592654 | W6: 4.141501715 | X6: 0.08183134599 | Y6: -0.3335557146
A7: Out Line (height) | B7: 4.595 | C7: m | E7: 0.0005 | F7: 0.0025 | G7: 5.423900688 | H7: 1.018261436 | I7: -0.3944470011 | J7: 0.1748760965 | K7: 0.4314743165 | L7: 0.1145371541 | M7: 0 | N7: 0 | O7: 0 | P7: 0 | Q7: 0 | R7: 0 | S7: 0 | T7: 0 | U7: 0 | V7: -314.1592654 | W7: 4.139613583 | X7: 0.08181682859 | Y7: -0.3334947824
A8: Door Line (height) | B8: 2.155 | C8: m | E8: 0.0005 | F8: 0.003 | G8: 5.415683468 | H8: 1.021902951 | I8: -0.3944060963 | J8: 0.1747093643 | K8: 0.431369367 | L8: 0.114481442 | M8: 0 | N8: 0 | O8: 0 | P8: 0 | Q8: 0 | R8: 0 | S8: 0 | T8: 0 | U8: 0 | V8: -314.1592654 | W8: 4.13772702 | X8: 0.0818023294 | Y8: -0.3334338874
E9: 0.0005 | F9: 0.0035 | G9: 5.4074671 | H9: 1.025540993 | I9: -0.3943651988 | J9: 0.1745426626 | K9: 0.4312644793 | L9: 0.1144257763 | M9: 0 | N9: 0 | O9: 0 | P9: 0 | Q9: 0 | R9: 0 | S9: 0 | T9: 0 | U9: 0 | V9: -314.1592654 | W9: 4.135842026 | X9: 0.08178784841 | Y9: -0.3333730296
A10: Environment | E10: 0.0005 | F10: 0.004 | G10: 5.399251585 | H10: 1.029175562 | I10: -0.3943243085 | J10: 0.1743759913 | K10: 0.4311596533 | L10: 0.1143701569 | M10: 0 | N10: 0 | O10: 0 | P10: 0 | Q10: 0 | R10: 0 | S10: 0 | T10: 0 | U10: 0 | V10: -314.1592654 | W10: 4.133958599 | X10: 0.08177338562 | Y10: -0.3333122089
A11: Gravitation | B11: 9.81 | C11: m/s^2 | E11: 0.0005 | F11: 0.0045 | G11: 5.391036921 | H11: 1.032806659 | I11: -0.3942834254 | J11: 0.1742093504 | K11: 0.431054889 | L11: 0.1143145837 | M11: 0 | N11: 0 | O11: 0 | P11: 0 | Q11: 0 | R11: 0 | S11: 0 | T11: 0 | U11: 0 | V11: -314.1592654 | W11: 4.132076739 | X11: 0.08175894101 | Y11: -0.3332514254
A12: Air density | B12: 1.2 | C12: kg/m^3 | E12: 0.0005 | F12: 0.005 | G12: 5.382823109 | H12: 1.036434285 | I12: -0.3942425495 | J12: 0.1740427399 | K12: 0.4309501864 | L12: 0.1142590568 | M12: 0 | N12: 0 | O12: 0 | P12: 0 | Q12: 0 | R12: 0 | S12: 0 | T12: 0 | U12: 0 | V12: -314.1592654 | W12: 4.130196444 | X12: 0.08174451457 | Y12: -0.333190679
E13: 0.0005 | F13: 0.0055 | G13: 5.374610148 | H13: 1.04005844 | I13: -0.3942016809 | J13: 0.1738761597 | K13: 0.4308455455 | L13: 0.1142035761 | M13: 0 | N13: 0 | O13: 0 | P13: 0 | Q13: 0 | R13: 0 | S13: 0 | T13: 0 | U13: 0 | V13: -314.1592654 | W13: 4.128317714 | X13: 0.08173010631 | Y13: -0.3331299696
A14: Ball | E14: 0.0005 | F14: 0.006 | G14: 5.366398039 | H14: 1.043679125 | I14: -0.3941608194 | J14: 0.1737096099 | K14: 0.4307409664 | L14: 0.1141481415 | M14: 0 | N14: 0 | O14: 0 | P14: 0 | Q14: 0 | R14: 0 | S14: 0 | T14: 0 | U14: 0 | V14: -314.1592654 | W14: 4.126440548 | X14: 0.08171571621 | Y14: -0.3330692973
A15: Mass | B15: 0.024 | C15: kg | E15: 0.0005 | F15: 0.0065 | G15: 5.35818678 | H15: 1.047296341 | I15: -0.3941199652 | J15: 0.1735430904 | K15: 0.4306364489 | L15: 0.1140927531 | M15: 0 | N15: 0 | O15: 0 | P15: 0 | Q15: 0 | R15: 0 | S15: 0 | T15: 0 | U15: 0 | V15: -314.1592654 | W15: 4.124564944 | X15: 0.08170134426 | Y15: -0.3330086619
A16: Radius | B16: 0.02 | C16: m | E16: 0.0005 | F16: 0.007 | G16: 5.349976373 | H16: 1.050910088 | I16: -0.3940791181 | J16: 0.1733766012 | K16: 0.4305319932 | L16: 0.1140374109 | M16: 0 | N16: 0 | O16: 0 | P16: 0 | Q16: 0 | R16: 0 | S16: 0 | T16: 0 | U16: 0 | V16: -314.1592654 | W16: 4.122690902 | X16: 0.08168699045 | Y16: -0.3329480635
A17: Stiffness | B17: 3200 | C17: N/m | E17: 0.0005 | F17: 0.0075 | G17: 5.341766817 | H17: 1.054520366 | I17: -0.3940382782 | J17: 0.1732101423 | K17: 0.4304275991 | L17: 0.1139821147 | M17: 0 | N17: 0 | O17: 0 | P17: 0 | Q17: 0 | R17: 0 | S17: 0 | T17: 0 | U17: 0 | V17: -314.1592654 | W17: 4.120818421 | X17: 0.08167265479 | Y17: -0.3328875021
A18: Hysteresis | B18: 1880 | C18: N/m | E18: 0.0005 | F18: 0.008 | G18: 5.333558112 | H18: 1.058127177 | I18: -0.3939974454 | J18: 0.1730437137 | K18: 0.4303232667 | L18: 0.1139268646 | M18: 0 | N18: 0 | O18: 0 | P18: 0 | Q18: 0 | R18: 0 | S18: 0 | T18: 0 | U18: 0 | V18: -314.1592654 | W18: 4.1189475 | X18: 0.08165833725 | Y18: -0.3328269775
A19: Drag coefficient | B19: 0.47 | E19: 0.0005 | F19: 0.0085 | G19: 5.325350257 | H19: 1.061730521 | I19: -0.3939566198 | J19: 0.1728773153 | K19: 0.4302189959 | L19: 0.1138716605 | M19: 0 | N19: 0 | O19: 0 | P19: 0 | Q19: 0 | R19: 0 | S19: 0 | T19: 0 | U19: 0 | V19: -314.1592654 | W19: 4.117078138 | X19: 0.08164403783 | Y19: -0.3327664898
A20: Spin factor | B20: =0.00001/_m -> 0.0004166666667 | E20: 0.0005 | F20: 0.009 | G20: 5.317143252 | H20: 1.065330399 | I20: -0.3939158014 | J20: 0.1727109472 | K20: 0.4301147868 | L20: 0.1138165024 | M20: 0 | N20: 0 | O20: 0 | P20: 0 | Q20: 0 | R20: 0 | S20: 0 | T20: 0 | U20: 0 | V20: -314.1592654 | W20: 4.115210334 | X20: 0.08162975653 | Y20: -0.332706039
A21: Drag factor | B21: =0.5*Cd*rho*PI()*_r*_r/_m/_m -> 0.6152285613 | E21: 0.0005 | F21: 0.0095 | G21: 5.308937098 | H21: 1.068926811 | I21: -0.3938749901 | J21: 0.1725446093 | K21: 0.4300106394 | L21: 0.1137613903 | M21: 0 | N21: 0 | O21: 0 | P21: 0 | Q21: 0 | R21: 0 | S21: 0 | T21: 0 | U21: 0 | V21: -314.1592654 | W21: 4.113344087 | X21: 0.08161549333 | Y21: -0.3326456249
A22: Moment of inertia | B22: =0.4*_m*(_r^5-(_r-0.004)^5)/(_r^3-(_r-0.004)^3) -> 5.290386885e-06 | C22: kg.m^2 | E22: 0.0005 | F22: 0.01 | G22: 5.300731794 | H22: 1.072519758 | I22: -0.3938341859 | J22: 0.1723783016 | K22: 0.4299065536 | L22: 0.1137063242 | M22: 0 | N22: 0 | O22: 0 | P22: 0 | Q22: 0 | R22: 0 | S22: 0 | T22: 0 | U22: 0 | V22: -314.1592654 | W22: 4.111479396 | X22: 0.08160124823 | Y22: -0.3325852476
A23: CoR1 | B23: =ABS(VLOOKUP("out1",D$3:K$10001,6,FALSE)/VLOOKUP("in1",D$3:K$10001,6,FALSE)) -> 0.5096586711 | E23: 0.0005 | F23: 0.0105 | G23: 5.292527341 | H23: 1.07610924 | I23: -0.3937933888 | J23: 0.172212024 | K23: 0.4298025294 | L23: 0.113651304 | M23: 0 | N23: 0 | O23: 0 | P23: 0 | Q23: 0 | R23: 0 | S23: 0 | T23: 0 | U23: 0 | V23: -314.1592654 | W23: 4.10961626 | X23: 0.08158702122 | Y23: -0.3325249071
A24: CoR2 | B24: =ABS(VLOOKUP("out2",D$3:K$10001,7,FALSE)/VLOOKUP("in2",D$3:K$10001,7,FALSE)) -> 0.5097410399 | E24: 0.0005 | F24: 0.011 | G24: 5.284323737 | H24: 1.079695259 | I24: -0.3937525989 | J24: 0.1720457767 | K24: 0.4296985669 | L24: 0.1135963297 | M24: 0 | N24: 0 | O24: 0 | P24: 0 | Q24: 0 | R24: 0 | S24: 0 | T24: 0 | U24: 0 | V24: -314.1592654 | W24: 4.107754678 | X24: 0.08157281229 | Y24: -0.3324646033
A25: CoR3 | B25: =ABS(VLOOKUP("out3",D$3:K$10001,6,FALSE)/VLOOKUP("in3",D$3:K$10001,6,FALSE)) -> 0.5146453151 | E25: 0.0005 | F25: 0.0115 | G25: 5.276120982 | H25: 1.083277814 | I25: -0.393711816 | J25: 0.1718795594 | K25: 0.4295946659 | L25: 0.1135414012 | M25: 0 | N25: 0 | O25: 0 | P25: 0 | Q25: 0 | R25: 0 | S25: 0 | T25: 0 | U25: 0 | V25: -314.1592654 | W25: 4.105894649 | X25: 0.08155862143 | Y25: -0.3324043361
E26: 0.0005 | F26: 0.012 | G26: 5.267919078 | H26: 1.086856907 | I26: -0.3936710402 | J26: 0.1717133723 | K26: 0.4294908266 | L26: 0.1134865186 | M26: 0 | N26: 0 | O26: 0 | P26: 0 | Q26: 0 | R26: 0 | S26: 0 | T26: 0 | U26: 0 | V26: -314.1592654 | W26: 4.104036173 | X26: 0.08154444864 | Y26: -0.3323441056
A27: Service | E27: 0.0005 | F27: 0.0125 | G27: 5.259718022 | H27: 1.090432538 | I27: -0.3936302715 | J27: 0.1715472153 | K27: 0.4293870489 | L27: 0.1134316818 | M27: 0 | N27: 0 | O27: 0 | P27: 0 | Q27: 0 | R27: 0 | S27: 0 | T27: 0 | U27: 0 | V27: -314.1592654 | W27: 4.102179248 | X27: 0.08153029391 | Y27: -0.3322839117
A28: Behind the line | B28: 0 | C28: m | E28: 0.0005 | F28: 0.013 | G28: 5.251517816 | H28: 1.094004708 | I28: -0.3935895099 | J28: 0.1713810884 | K28: 0.4292833328 | L28: 0.1133768908 | M28: 0 | N28: 0 | O28: 0 | P28: 0 | Q28: 0 | R28: 0 | S28: 0 | T28: 0 | U28: 0 | V28: -314.1592654 | W28: 4.100323874 | X28: 0.08151615722 | Y28: -0.3322237544
A29: Height | B29: 1 | C29: m | E29: 0.0005 | F29: 0.0135 | G29: 5.243318459 | H29: 1.097573417 | I29: -0.3935487554 | J29: 0.1712149916 | K29: 0.4291796782 | L29: 0.1133221456 | M29: 0 | N29: 0 | O29: 0 | P29: 0 | Q29: 0 | R29: 0 | S29: 0 | T29: 0 | U29: 0 | V29: -314.1592654 | W29: 4.098470049 | X29: 0.08150203858 | Y29: -0.3321636337
A30: Angle | B30: 24 | C30: deg | E30: 0.0005 | F30: 0.014 | G30: 5.235119951 | H30: 1.101138666 | I30: -0.3935080079 | J30: 0.1710489248 | K30: 0.4290760853 | L30: 0.113267446 | M30: 0 | N30: 0 | O30: 0 | P30: 0 | Q30: 0 | R30: 0 | S30: 0 | T30: 0 | U30: 0 | V30: -314.1592654 | W30: 4.096617773 | X30: 0.08148793798 | Y30: -0.3321035494
A31: Speed | B31: 18 | C31: m/s | E31: 0.0005 | F31: 0.0145 | G31: 5.226922292 | H31: 1.104700456 | I31: -0.3934672674 | J31: 0.170882888 | K31: 0.4289725539 | L31: 0.1132127922 | M31: 0 | N31: 0 | O31: 0 | P31: 0 | Q31: 0 | R31: 0 | S31: 0 | T31: 0 | U31: 0 | V31: -314.1592654 | W31: 4.094767044 | X31: 0.0814738554 | Y31: -0.3320435017
A32: Topspin | B32: 50 | C32: rev/s | E32: 0.0005 | F32: 0.015 | G32: 5.218725482 | H32: 1.108258787 | I32: -0.393426534 | J32: 0.1707168813 | K32: 0.428869084 | L32: 0.1131581841 | M32: 0 | N32: 0 | O32: 0 | P32: 0 | Q32: 0 | R32: 0 | S32: 0 | T32: 0 | U32: 0 | V32: -314.1592654 | W32: 4.092917862 | X32: 0.08145979083 | Y32: -0.3319834904
E33: 0.0005 | F33: 0.0155 | G33: 5.21052952 | H33: 1.11181366 | I33: -0.3933858077 | J33: 0.1705509045 | K33: 0.4287656757 | L33: 0.1131036216 | M33: 0 | N33: 0 | O33: 0 | P33: 0 | Q33: 0 | R33: 0 | S33: 0 | T33: 0 | U33: 0 | V33: -314.1592654 | W33: 4.091070226 | X33: 0.08144574428 | Y33: -0.3319235156
A34: Simulation | E34: 0.0005 | F34: 0.016 | G34: 5.202334406 | H34: 1.115365075 | I34: -0.3933450883 | J34: 0.1703849577 | K34: 0.428662329 | L34: 0.1130491047 | M34: 0 | N34: 0 | O34: 0 | P34: 0 | Q34: 0 | R34: 0 | S34: 0 | T34: 0 | U34: 0 | V34: -314.1592654 | W34: 4.089224135 | X34: 0.08143171573 | Y34: -0.3318635771
A35: Time step base | B35: 0.0005 | C35: s | E35: 0.0005 | F35: 0.0165 | G35: 5.194140141 | H35: 1.118913033 | I35: -0.3933043759 | J35: 0.1702190409 | K35: 0.4285590438 | L35: 0.1129946334 | M35: 0 | N35: 0 | O35: 0 | P35: 0 | Q35: 0 | R35: 0 | S35: 0 | T35: 0 | U35: 0 | V35: -314.1592654 | W35: 4.087379587 | X35: 0.08141770518 | Y35: -0.331803675
A36: Time step fine | B36: 5e-05 | C36: s | E36: 0.0005 | F36: 0.017 | G36: 5.185946724 | H36: 1.122457535 | I36: -0.3932636706 | J36: 0.1700531541 | K36: 0.4284558201 | L36: 0.1129402077 | M36: 0 | N36: 0 | O36: 0 | P36: 0 | Q36: 0 | R36: 0 | S36: 0 | T36: 0 | U36: 0 | V36: -314.1592654 | W36: 4.085536583 | X36: 0.08140371261 | Y36: -0.3317438092
E37: 0.0005 | F37: 0.0175 | G37: 5.177754155 | H37: 1.125998581 | I37: -0.3932229722 | J37: 0.1698872971 | K37: 0.428352658 | L37: 0.1128858276 | M37: 0 | N37: 0 | O37: 0 | P37: 0 | Q37: 0 | R37: 0 | S37: 0 | T37: 0 | U37: 0 | V37: -314.1592654 | W37: 4.08369512 | X37: 0.08138973803 | Y37: -0.3316839798
A38: Chart Lines | B38: x | C38: y | E38: 0.0005 | F38: 0.018 | G38: 5.169562433 | H38: 1.129536173 | I38: -0.3931822808 | J38: 0.1697214701 | K38: 0.4282495573 | L38: 0.1128314929 | M38: 0 | N38: 0 | O38: 0 | P38: 0 | Q38: 0 | R38: 0 | S38: 0 | T38: 0 | U38: 0 | V38: -314.1592654 | W38: 4.081855199 | X38: 0.08137578141 | Y38: -0.3316241866
A39: Floor | B39: 0 | C39: 0 | E39: 0.0005 | F39: 0.0185 | G39: 5.16137156 | H39: 1.133070309 | I39: -0.3931415964 | J39: 0.1695556729 | K39: 0.4281465182 | L39: 0.1127772037 | M39: 0 | N39: 0 | O39: 0 | P39: 0 | Q39: 0 | R39: 0 | S39: 0 | T39: 0 | U39: 0 | V39: -314.1592654 | W39: 4.080016817 | X39: 0.08136184276 | Y39: -0.3315644296
B40: =backwall -> 9.75 | C40: 0 | E40: 0.0005 | F40: 0.019 | G40: 5.153181534 | H40: 1.136600993 | I40: -0.393100919 | J40: 0.1693899056 | K40: 0.4280435406 | L40: 0.11272296 | M40: 0 | N40: 0 | O40: 0 | P40: 0 | Q40: 0 | R40: 0 | S40: 0 | T40: 0 | U40: 0 | V40: -314.1592654 | W40: 4.078179975 | X40: 0.08134792206 | Y40: -0.3315047089
A41: Front Wall | B41: 0 | C41: 0 | E41: 0.0005 | F41: 0.0195 | G41: 5.144992355 | H41: 1.140128222 | I41: -0.3930602485 | J41: 0.1692241682 | K41: 0.4279406245 | L41: 0.1126687617 | M41: 0 | N41: 0 | O41: 0 | P41: 0 | Q41: 0 | R41: 0 | S41: 0 | T41: 0 | U41: 0 | V41: -314.1592654 | W41: 4.076344671 | X41: 0.08133401931 | Y41: -0.3314450243
B42: 0 | C42: =outline -> 4.595 | E42: 0.0005 | F42: 0.02 | G42: 5.136804023 | H42: 1.143652 | I42: -0.393019585 | J42: 0.1690584606 | K42: 0.4278377698 | L42: 0.1126146088 | M42: 0 | N42: 0 | O42: 0 | P42: 0 | Q42: 0 | R42: 0 | S42: 0 | T42: 0 | U42: 0 | V42: -314.1592654 | W42: 4.074510905 | X42: 0.0813201345 | Y42: -0.3313853759
A43: Front Wall extension | B43: 0 | C43: =outline -> 4.595 | E43: 0.0005 | F43: 0.0205 | G43: 5.128616539 | H43: 1.147172325 | I43: -0.3929789284 | J43: 0.1688927828 | K43: 0.4277349766 | L43: 0.1125605012 | M43: 0 | N43: 0 | O43: 0 | P43: 0 | Q43: 0 | R43: 0 | S43: 0 | T43: 0 | U43: 0 | V43: -314.1592654 | W43: 4.072678675 | X43: 0.08130626763 | Y43: -0.3313257636
B44: 0 | C44: 5 | E44: 0.0005 | F44: 0.021 | G44: 5.120429901 | H44: 1.150689199 | I44: -0.3929382787 | J44: 0.1687271348 | K44: 0.4276322449 | L44: 0.1125064391 | M44: 0 | N44: 0 | O44: 0 | P44: 0 | Q44: 0 | R44: 0 | S44: 0 | T44: 0 | U44: 0 | V44: -314.1592654 | W44: 4.07084798 | X44: 0.08129241868 | Y44: -0.3312661873
A45: Back Wall | B45: =backwall -> 9.75 | C45: 0 | E45: 0.0005 | F45: 0.0215 | G45: 5.11224411 | H45: 1.154202623 | I45: -0.392897636 | J45: 0.1685615166 | K45: 0.4275295747 | L45: 0.1124524222 | M45: 0 | N45: 0 | O45: 0 | P45: 0 | Q45: 0 | R45: 0 | S45: 0 | T45: 0 | U45: 0 | V45: -314.1592654 | W45: 4.069018821 | X45: 0.08127858764 | Y45: -0.3312066472
B46: =backwall -> 9.75 | C46: =doorline -> 2.155 | E46: 0.0005 | F46: 0.022 | G46: 5.104059166 | H46: 1.157712596 | I46: -0.3928570001 | J46: 0.1683959282 | K46: 0.4274269659 | L46: 0.1123984506 | M46: 0 | N46: 0 | O46: 0 | P46: 0 | Q46: 0 | R46: 0 | S46: 0 | T46: 0 | U46: 0 | V46: -314.1592654 | W46: 4.067191194 | X46: 0.08126477452 | Y46: -0.331147143
A47: Back Wall extension | B47: =backwall -> 9.75 | C47: =doorline -> 2.155 | E47: 0.0005 | F47: 0.0225 | G47: 5.095875069 | H47: 1.16121912 | I47: -0.3928163712 | J47: 0.1682303695 | K47: 0.4273244185 | L47: 0.1123445243 | M47: 0 | N47: 0 | O47: 0 | P47: 0 | Q47: 0 | R47: 0 | S47: 0 | T47: 0 | U47: 0 | V47: -314.1592654 | W47: 4.065365101 | X47: 0.08125097929 | Y47: -0.3310876748
B48: =backwall -> 9.75 | C48: 5 | E48: 0.0005 | F48: 0.023 | G48: 5.087691817 | H48: 1.164722195 | I48: -0.3927757491 | J48: 0.1680648405 | K48: 0.4272219326 | L48: 0.1122906432 | M48: 0 | N48: 0 | O48: 0 | P48: 0 | Q48: 0 | R48: 0 | S48: 0 | T48: 0 | U48: 0 | V48: -314.1592654 | W48: 4.063540539 | X48: 0.08123720196 | Y48: -0.3310282426
A49: Side Wall | B49: 0 | C49: =outline -> 4.595 | E49: 0.0005 | F49: 0.0235 | G49: 5.079509412 | H49: 1.168221822 | I49: -0.392735134 | J49: 0.1678993412 | K49: 0.4271195081 | L49: 0.1122368073 | M49: 0 | N49: 0 | O49: 0 | P49: 0 | Q49: 0 | R49: 0 | S49: 0 | T49: 0 | U49: 0 | V49: -314.1592654 | W49: 4.061717508 | X49: 0.08122344252 | Y49: -0.3309688463
B50: =backwall -> 9.75 | C50: =doorline -> 2.155 | E50: 0.0005 | F50: 0.024 | G50: 5.071327853 | H50: 1.171718001 | I50: -0.3926945257 | J50: 0.1677338716 | K50: 0.4270171451 | L50: 0.1121830167 | M50: 0 | N50: 0 | O50: 0 | P50: 0 | Q50: 0 | R50: 0 | S50: 0 | T50: 0 | U50: 0 | V50: -314.1592654 | W50: 4.059896008 | X50: 0.08120970095 | Y50: -0.330909486
A51: Tin | B51: 0 | C51: =tin -> 0.455 | E51: 0.0005 | F51: 0.0245 | G51: 5.06314714 | H51: 1.175210733 | I51: -0.3926539243 | J51: 0.1675684317 | K51: 0.4269148434 | L51: 0.1121292711 | M51: 0 | N51: 0 | O51: 0 | P51: 0 | Q51: 0 | R51: 0 | S51: 0 | T51: 0 | U51: 0 | V51: -314.1592654 | W51: 4.058076036 | X51: 0.08119597726 | Y51: -0.3308501614
B52: 0.1 | C52: =tin -> 0.455 | E52: 0.0005 | F52: 0.025 | G52: 5.054967273 | H52: 1.178700019 | I52: -0.3926133297 | J52: 0.1674030215 | K52: 0.4268126032 | L52: 0.1120755707 | M52: 0 | N52: 0 | O52: 0 | P52: 0 | Q52: 0 | R52: 0 | S52: 0 | T52: 0 | U52: 0 | V52: -314.1592654 | W52: 4.056257592 | X52: 0.08118227143 | Y52: -0.3307908727
A53: Service Line | B53: 0 | C53: =serviceline -> 1.805 | E53: 0.0005 | F53: 0.0255 | G53: 5.046788252 | H53: 1.182185859 | I53: -0.392572742 | J53: 0.1672376409 | K53: 0.4267104244 | L53: 0.1120219154 | M53: 0 | N53: 0 | O53: 0 | P53: 0 | Q53: 0 | R53: 0 | S53: 0 | T53: 0 | U53: 0 | V53: -314.1592654 | W53: 4.054440676 | X53: 0.08116858345 | Y53: -0.3307316199
B54: 0.1 | C54: =serviceline -> 1.805 | E54: 0.0005 | F54: 0.026 | G54: 5.038610076 | H54: 1.185668254 | I54: -0.3925321611 | J54: 0.1670722899 | K54: 0.4266083069 | L54: 0.1119683052 | M54: 0 | N54: 0 | O54: 0 | P54: 0 | Q54: 0 | R54: 0 | S54: 0 | T54: 0 | U54: 0 | V54: -314.1592654 | W54: 4.052625286 | X54: 0.08115491332 | Y54: -0.3306724027
A55: Short Line | B55: =shortline -> 5.465 | C55: 0 | E55: 0.0005 | F55: 0.0265 | G55: 5.030432745 | H55: 1.189147205 | I55: -0.3924915871 | J55: 0.1669069684 | K55: 0.4265062509 | L55: 0.11191474 | M55: 0 | N55: 0 | O55: 0 | P55: 0 | Q55: 0 | R55: 0 | S55: 0 | T55: 0 | U55: 0 | V55: -314.1592654 | W55: 4.050811421 | X55: 0.08114126103 | Y55: -0.3306132214
B56: =shortline -> 5.465 | C56: 0.1 | E56: 0.0005 | F56: 0.027 | G56: 5.022256259 | H56: 1.192622712 | I56: -0.3924510199 | J56: 0.1667416766 | K56: 0.4264042562 | L56: 0.1118612198 | M56: 0 | N56: 0 | O56: 0 | P56: 0 | Q56: 0 | R56: 0 | S56: 0 | T56: 0 | U56: 0 | V56: -314.1592654 | W56: 4.048999081 | X56: 0.08112762657 | Y56: -0.3305540757
A57: Short Line extension | B57: =shortline -> 5.465 | C57: 0.1 | E57: 0.0005 | F57: 0.0275 | G57: 5.014080619 | H57: 1.196094775 | I57: -0.3924104594 | J57: 0.1665764144 | K57: 0.4263023229 | L57: 0.1118077446 | M57: 0 | N57: 0 | O57: 0 | P57: 0 | Q57: 0 | R57: 0 | S57: 0 | T57: 0 | U57: 0 | V57: -314.1592654 | W57: 4.047188264 | X57: 0.08111400993 | Y57: -0.3304949657
B58: =shortline -> 5.465 | C58: 1.9 | E58: 0.0005 | F58: 0.028 | G58: 5.005905824 | H58: 1.199563396 | I58: -0.3923699058 | J58: 0.1664111817 | K58: 0.4262004509 | L58: 0.1117543144 | M58: 0 | N58: 0 | O58: 0 | P58: 0 | Q58: 0 | R58: 0 | S58: 0 | T58: 0 | U58: 0 | V58: -314.1592654 | W58: 4.04537897 | X58: 0.08110041111 | Y58: -0.3304358914
A59: Service Box | B59: =servicebox -> 7.115 | C59: 0 | E59: 0.0005 | F59: 0.0285 | G59: 4.997731873 | H59: 1.203028575 | I59: -0.392329359 | J59: 0.1662459785 | K59: 0.4260986404 | L59: 0.1117009292 | M59: 0 | N59: 0 | O59: 0 | P59: 0 | Q59: 0 | R59: 0 | S59: 0 | T59: 0 | U59: 0 | V59: -314.1592654 | W59: 4.043571197 | X59: 0.0810868301 | Y59: -0.3303768527
B60: =servicebox -> 7.115 | C60: 0.1 | E60: 0.0005 | F60: 0.029 | G60: 4.989558767 | H60: 1.206490312 | I60: -0.392288819 | J60: 0.1660808048 | K60: 0.4259968911 | L60: 0.1116475888 | M60: 0 | N60: 0 | O60: 0 | P60: 0 | Q60: 0 | R60: 0 | S60: 0 | T60: 0 | U60: 0 | V60: -314.1592654 | W60: 4.041764946 | X60: 0.0810732669 | Y60: -0.3303178495
E61: 0.0005 | F61: 0.0295 | G61: 4.981386505 | H61: 1.209948608 | I61: -0.3922482858 | J61: 0.1659156606 | K61: 0.4258952032 | L61: 0.1115942933 | M61: 0 | N61: 0 | O61: 0 | P61: 0 | Q61: 0 | R61: 0 | S61: 0 | T61: 0 | U61: 0 | V61: -314.1592654 | W61: 4.039960214 | X61: 0.08105972148 | Y61: -0.330258882
E62: 0.0005 | F62: 0.03 | G62: 4.973215088 | H62: 1.213403465 | I62: -0.3922077593 | J62: 0.1657505459 | K62: 0.4257935766 | L62: 0.1115410427 | M62: 0 | N62: 0 | O62: 0 | P62: 0 | Q62: 0 | R62: 0 | S62: 0 | T62: 0 | U62: 0 | V62: -314.1592654 | W62: 4.038157002 | X62: 0.08104619385 | Y62: -0.3301999499
E63: 0.0005 | F63: 0.0305 | G63: 4.965044515 | H63: 1.216854881 | I63: -0.3921672396 | J63: 0.1655854607 | K63: 0.4256920114 | L63: 0.1114878369 | M63: 0 | N63: 0 | O63: 0 | P63: 0 | Q63: 0 | R63: 0 | S63: 0 | T63: 0 | U63: 0 | V63: -314.1592654 | W63: 4.036355307 | X63: 0.081032684 | Y63: -0.3301410533
E64: 0.0005 | F64: 0.031 | G64: 4.956874787 | H64: 1.220302859 | I64: -0.3921267266 | J64: 0.1654204048 | K64: 0.4255905075 | L64: 0.1114346759 | M64: 0 | N64: 0 | O64: 0 | P64: 0 | Q64: 0 | R64: 0 | S64: 0 | T64: 0 | U64: 0 | V64: -314.1592654 | W64: 4.034555129 | X64: 0.08101919192 | Y64: -0.3300821922
E65: 0.0005 | F65: 0.0315 | G65: 4.948705902 | H65: 1.223747398 | I65: -0.3920862204 | J65: 0.1652553785 | K65: 0.4254890649 | L65: 0.1113815597 | M65: 0 | N65: 0 | O65: 0 | P65: 0 | Q65: 0 | R65: 0 | S65: 0 | T65: 0 | U65: 0 | V65: -314.1592654 | W65: 4.032756468 | X65: 0.0810057176 | Y65: -0.3300233666
E66: =IF(OR(G66<=_r,G66>=backwall-_r,H66<=_r),dt_small,dt) -> 0.0005 | F66: 0.032 | G66: 4.940537861 | H66: 1.2271885 | I66: -0.3920457209 | J66: 0.1650903815 | K66: 0.4253876835 | L66: =_kd*K66*K66 -> 0.1113284882 | M66: =MAX(_r-G66,0) -> 0 | N66: =MAX(_r-H66,0) -> 0 | O66: =MAX(G66-backwall+_r,0) -> 0 | P66: =IF(I66<0,M66*(_ks+hyst),M66*(_ks-hyst)) -> 0 | Q66: =IF(J66<0,N66*(_ks+hyst),N66*(_ks-hyst)) -> 0 | R66: =IF(I66>0,O66*(_ks+hyst),O66*(_ks-hyst)) -> 0 | S66: 0 | T66: 0 | U66: 0 | V66: -314.1592654 | W66: =0.5*K66*K66/_m+0.5*_I*V66*V66 -> 4.030959322 | X66: =-L66*I66/K66+P66-R66+_km*V66*J66 -> 0.08099226104 | Y66: =-_m*_g-L66*J66/K66+Q66-_km*V66*I66 -> -0.3299645763
E67: 0.0005 | F67: 0.0325 | G67: 4.932370663 | H67: 1.230626164 | I67: -0.3920052281 | J67: 0.1649254139 | K67: 0.4252863635 | L67: 0.1112754615 | M67: 0 | N67: 0 | O67: 0 | P67: 0 | Q67: 0 | R67: 0 | S67: =IF(AND(M67=0,M66>0),-J67/_m/_r,0) -> 0 | T67: =IF(AND(N67=0,N66>0),I67/_m/_r,0) -> 0 | U67: =IF(AND(O67=0,O66>0),J67/_m/_r,0) -> 0 | V67: -314.1592654 | W67: 4.029163691 | X67: 0.08097882223 | Y67: -0.3299058214
D68: =IF(AND(M68=0,M69>0),"in1",IF(AND(M68=0,M67>0),"out1",IF(AND(N68=0,N69>0),"in2",IF(AND(N68=0,N67>0),"out2",IF(AND(O68=0,O69>0),"in3",IF(AND(O68=0,O67>0),"out3","")))))) ->  | E68: 0.0005 | F68: =F67+E67 -> 0.033 | G68: 4.924204309 | H68: 1.234060392 | I68: -0.391964742 | J68: 0.1647604756 | K68: =SQRT(I68*I68+J68*J68) -> 0.4251851048 | L68: 0.1112224795 | M68: 0 | N68: 0 | O68: 0 | P68: 0 | Q68: 0 | R68: 0 | S68: 0 | T68: 0 | U68: 0 | V68: =IF(AND(S68=0,T68=0,U68=0),V67,S68+T68+U68) -> -314.1592654 | W68: 4.027369573 | X68: 0.08096540115 | Y68: -0.3298471019
E69: 0.0005 | F69: 0.0335 | G69: =G68+$E68*(23*I68-16*I67+5*I66)/12/_m -> 4.916038799 | H69: =H68+$E68*(23*J68-16*J67+5*J66)/12/_m -> 1.237491184 | I69: =I68+$E68*(23*X68-16*X67+5*X66)/12 -> -0.3919242627 | J69: =J68+$E68*(23*Y68-16*Y67+5*Y66)/12 -> 0.1645955668 | K69: 0.4250839074 | L69: 0.1111695421 | M69: 0 | N69: 0 | O69: 0 | P69: 0 | Q69: 0 | R69: 0 | S69: 0 | T69: 0 | U69: 0 | V69: -314.1592654 | W69: 4.025576968 | X69: 0.08095199781 | Y69: -0.3297884176
E70: 0.0005 | F70: 0.034 | G70: 4.907874132 | H70: 1.240918541 | I70: -0.39188379 | J70: 0.1644306872 | K70: 0.4249827712 | L70: 0.1111166494 | M70: 0 | N70: 0 | O70: 0 | P70: 0 | Q70: 0 | R70: 0 | S70: 0 | T70: 0 | U70: 0 | V70: -314.1592654 | W70: 4.023785874 | X70: 0.08093861219 | Y70: -0.3297297687
E71: 0.0005 | F71: 0.0345 | G71: 4.899710308 | H71: 1.244342463 | I71: -0.3918433241 | J71: 0.164265837 | K71: 0.4248816963 | L71: 0.1110638012 | M71: 0 | N71: 0 | O71: 0 | P71: 0 | Q71: 0 | R71: 0 | S71: 0 | T71: 0 | U71: 0 | V71: -314.1592654 | W71: 4.021996292 | X71: 0.08092524429 | Y71: -0.329671155
E72: 0.0005 | F72: 0.035 | G72: 4.891547327 | H72: 1.247762951 | I72: -0.3918028648 | J72: 0.1641010161 | K72: 0.4247806826 | L72: 0.1110109977 | M72: 0 | N72: 0 | O72: 0 | P72: 0 | Q72: 0 | R72: 0 | S72: 0 | T72: 0 | U72: 0 | V72: -314.1592654 | W72: 4.020208219 | X72: 0.0809118941 | Y72: -0.3296125765
E73: 0.0005 | F73: 0.0355 | G73: 4.883385188 | H73: 1.251180006 | I73: -0.3917624122 | J73: 0.1639362244 | K73: 0.4246797302 | L73: 0.1109582388 | M73: 0 | N73: 0 | O73: 0 | P73: 0 | Q73: 0 | R73: 0 | S73: 0 | T73: 0 | U73: 0 | V73: -314.1592654 | W73: 4.018421655 | X73: 0.08089856162 | Y73: -0.3295540332
E74: 0.0005 | F74: 0.036 | G74: 4.875223893 | H74: 1.254593627 | I74: -0.3917219662 | J74: 0.163771462 | K74: 0.4245788391 | L74: 0.1109055243 | M74: 0 | N74: 0 | O74: 0 | P74: 0 | Q74: 0 | R74: 0 | S74: 0 | T74: 0 | U74: 0 | V74: -314.1592654 | W74: 4.016636599 | X74: 0.08088524682 | Y74: -0.329495525
E75: 0.0005 | F75: 0.0365 | G75: 4.86706344 | H75: 1.258003817 | I75: -0.3916815269 | J75: 0.1636067289 | K75: 0.4244780092 | L75: 0.1108528544 | M75: 0 | N75: 0 | O75: 0 | P75: 0 | Q75: 0 | R75: 0 | S75: 0 | T75: 0 | U75: 0 | V75: -314.1592654 | W75: 4.014853051 | X75: 0.08087194972 | Y75: -0.329437052
E76: 0.0005 | F76: 0.037 | G76: 4.858903829 | H76: 1.261410575 | I76: -0.3916410943 | J76: 0.163442025 | K76: 0.4243772405 | L76: 0.110800229 | M76: 0 | N76: 0 | O76: 0 | P76: 0 | Q76: 0 | R76: 0 | S76: 0 | T76: 0 | U76: 0 | V76: -314.1592654 | W76: 4.013071009 | X76: 0.08085867029 | Y76: -0.3293786141
E77: 0.0005 | F77: 0.0375 | G77: 4.850745061 | H77: 1.264813901 | I77: -0.3916006683 | J77: 0.1632773503 | K77: 0.424276533 | L77: 0.110747648 | M77: 0 | N77: 0 | O77: 0 | P77: 0 | Q77: 0 | R77: 0 | S77: 0 | T77: 0 | U77: 0 | V77: -314.1592654 | W77: 4.011290472 | X77: 0.08084540853 | Y77: -0.3293202112
E78: 0.0005 | F78: 0.038 | G78: 4.842587134 | H78: 1.268213798 | I78: -0.3915602489 | J78: 0.1631127047 | K78: 0.4241758868 | L78: 0.1106951115 | M78: 0 | N78: 0 | O78: 0 | P78: 0 | Q78: 0 | R78: 0 | S78: 0 | T78: 0 | U78: 0 | V78: -314.1592654 | W78: 4.00951144 | X78: 0.08083216444 | Y78: -0.3292618434
E79: 0.0005 | F79: 0.0385 | G79: 4.83443005 | H79: 1.271610264 | I79: -0.3915198361 | J79: 0.1629480884 | K79: 0.4240753018 | L79: 0.1106426193 | M79: 0 | N79: 0 | O79: 0 | P79: 0 | Q79: 0 | R79: 0 | S79: 0 | T79: 0 | U79: 0 | V79: -314.1592654 | W79: 4.007733911 | X79: 0.08081893801 | Y79: -0.3292035106
E80: 0.0005 | F80: 0.039 | G80: 4.826273808 | H80: 1.275003302 | I80: -0.3914794299 | J80: 0.1627835012 | K80: 0.4239747779 | L80: 0.1105901715 | M80: 0 | N80: 0 | O80: 0 | P80: 0 | Q80: 0 | R80: 0 | S80: 0 | T80: 0 | U80: 0 | V80: -314.1592654 | W80: 4.005957885 | X80: 0.08080572922 | Y80: -0.3291452127
E81: 0.0005 | F81: 0.0395 | G81: 4.818118407 | H81: 1.27839291 | I81: -0.3914390304 | J81: 0.1626189432 | K81: 0.4238743153 | L81: 0.1105377681 | M81: 0 | N81: 0 | O81: 0 | P81: 0 | Q81: 0 | R81: 0 | S81: 0 | T81: 0 | U81: 0 | V81: -314.1592654 | W81: 4.004183361 | X81: 0.08079253808 | Y81: -0.3290869498
E82: 0.0005 | F82: 0.04 | G82: 4.809963848 | H82: 1.281779091 | I82: -0.3913986374 | J82: 0.1624544143 | K82: 0.4237739139 | L82: 0.110485409 | M82: 0 | N82: 0 | O82: 0 | P82: 0 | Q82: 0 | R82: 0 | S82: 0 | T82: 0 | U82: 0 | V82: -314.1592654 | W82: 4.002410338 | X82: 0.08077936457 | Y82: -0.3290287218
E83: 0.0005 | F83: 0.0405 | G83: 4.801810131 | H83: 1.285161845 | I83: -0.391358251 | J83: 0.1622899145 | K83: 0.4236735736 | L83: 0.1104330942 | M83: 0 | N83: 0 | O83: 0 | P83: 0 | Q83: 0 | R83: 0 | S83: 0 | T83: 0 | U83: 0 | V83: -314.1592654 | W83: 4.000638815 | X83: 0.08076620869 | Y83: -0.3289705287
E84: 0.0005 | F84: 0.041 | G84: 4.793657254 | H84: 1.288541171 | I84: -0.3913178712 | J84: 0.1621254437 | K84: 0.4235732945 | L84: 0.1103808237 | M84: 0 | N84: 0 | O84: 0 | P84: 0 | Q84: 0 | R84: 0 | S84: 0 | T84: 0 | U84: 0 | V84: -314.1592654 | W84: 3.998868791 | X84: 0.08075307043 | Y84: -0.3289123704
E85: 0.0005 | F85: 0.0415 | G85: 4.785505219 | H85: 1.291917072 | I85: -0.3912774979 | J85: 0.1619610021 | K85: 0.4234730766 | L85: 0.1103285974 | M85: 0 | N85: 0 | O85: 0 | P85: 0 | Q85: 0 | R85: 0 | S85: 0 | T85: 0 | U85: 0 | V85: -314.1592654 | W85: 3.997100266 | X85: 0.08073994977 | Y85: -0.328854247
E86: 0.0005 | F86: 0.042 | G86: 4.777354025 | H86: 1.295289546 | I86: -0.3912371312 | J86: 0.1617965895 | K86: 0.4233729198 | L86: 0.1102764154 | M86: 0 | N86: 0 | O86: 0 | P86: 0 | Q86: 0 | R86: 0 | S86: 0 | T86: 0 | U86: 0 | V86: -314.1592654 | W86: 3.995333237 | X86: 0.08072684673 | Y86: -0.3287961584
E87: 0.0005 | F87: 0.0425 | G87: 4.769203672 | H87: 1.298658596 | I87: -0.3911967711 | J87: 0.1616322059 | K87: 0.4232728242 | L87: 0.1102242775 | M87: 0 | N87: 0 | O87: 0 | P87: 0 | Q87: 0 | R87: 0 | S87: 0 | T87: 0 | U87: 0 | V87: -314.1592654 | W87: 3.993567705 | X87: 0.08071376128 | Y87: -0.3287381045
E88: 0.0005 | F88: 0.043 | G88: 4.76105416 | H88: 1.302024222 | I88: -0.3911564175 | J88: 0.1614678514 | K88: 0.4231727897 | L88: 0.1101721838 | M88: 0 | N88: 0 | O88: 0 | P88: 0 | Q88: 0 | R88: 0 | S88: 0 | T88: 0 | U88: 0 | V88: -314.1592654 | W88: 3.991803669 | X88: 0.08070069341 | Y88: -0.3286800853
E89: 0.0005 | F89: 0.0435 | G89: 4.752905488 | H89: 1.305386424 | I89: -0.3911160704 | J89: 0.1613035258 | K89: 0.4230728164 | L89: 0.1101201342 | M89: 0 | N89: 0 | O89: 0 | P89: 0 | Q89: 0 | R89: 0 | S89: 0 | T89: 0 | U89: 0 | V89: -314.1592654 | W89: 3.990041127 | X89: 0.08068764313 | Y89: -0.3286221009
E90: 0.0005 | F90: 0.044 | G90: 4.744757657 | H90: 1.308745202 | I90: -0.3910757298 | J90: 0.1611392293 | K90: 0.4229729042 | L90: 0.1100681288 | M90: 0 | N90: 0 | O90: 0 | P90: 0 | Q90: 0 | R90: 0 | S90: 0 | T90: 0 | U90: 0 | V90: -314.1592654 | W90: 3.98828008 | X90: 0.08067461043 | Y90: -0.3285641511
E91: 0.0005 | F91: 0.0445 | G91: 4.736610666 | H91: 1.312100558 | I91: -0.3910353958 | J91: 0.1609749617 | K91: 0.4228730531 | L91: 0.1100161674 | M91: 0 | N91: 0 | O91: 0 | P91: 0 | Q91: 0 | R91: 0 | S91: 0 | T91: 0 | U91: 0 | V91: -314.1592654 | W91: 3.986520525 | X91: 0.08066159529 | Y91: -0.3285062359
E92: 0.0005 | F92: 0.045 | G92: 4.728464515 | H92: 1.315452493 | I92: -0.3909950682 | J92: 0.160810723 | K92: 0.4227732631 | L92: 0.1099642501 | M92: 0 | N92: 0 | O92: 0 | P92: 0 | Q92: 0 | R92: 0 | S92: 0 | T92: 0 | U92: 0 | V92: -314.1592654 | W92: 3.984762462 | X92: 0.08064859771 | Y92: -0.3284483554
E93: 0.0005 | F93: 0.0455 | G93: 4.720319205 | H93: 1.318801005 | I93: -0.3909547472 | J93: 0.1606465133 | K93: 0.4226735343 | L93: 0.1099123768 | M93: 0 | N93: 0 | O93: 0 | P93: 0 | Q93: 0 | R93: 0 | S93: 0 | T93: 0 | U93: 0 | V93: -314.1592654 | W93: 3.98300589 | X93: 0.08063561768 | Y93: -0.3283905095
E94: 0.0005 | F94: 0.046 | G94: 4.712174734 | H94: 1.322146098 | I94: -0.3909144326 | J94: 0.1604823325 | K94: 0.4225738665 | L94: 0.1098605476 | M94: 0 | N94: 0 | O94: 0 | P94: 0 | Q94: 0 | R94: 0 | S94: 0 | T94: 0 | U94: 0 | V94: -314.1592654 | W94: 3.981250809 | X94: 0.0806226552 | Y94: -0.3283326981
E95: 0.0005 | F95: 0.0465 | G95: 4.704031103 | H95: 1.32548777 | I95: -0.3908741245 | J95: 0.1603181806 | K95: 0.4224742599 | L95: 0.1098087623 | M95: 0 | N95: 0 | O95: 0 | P95: 0 | Q95: 0 | R95: 0 | S95: 0 | T95: 0 | U95: 0 | V95: -314.1592654 | W95: 3.979497217 | X95: 0.08060971025 | Y95: -0.3282749212
E96: 0.0005 | F96: 0.047 | G96: 4.695888312 | H96: 1.328826022 | I96: -0.3908338229 | J96: 0.1601540576 | K96: 0.4223747143 | L96: 0.109757021 | M96: 0 | N96: 0 | O96: 0 | P96: 0 | Q96: 0 | R96: 0 | S96: 0 | T96: 0 | U96: 0 | V96: -314.1592654 | W96: 3.977745113 | X96: 0.08059678284 | Y96: -0.3282171788
E97: 0.0005 | F97: 0.0475 | G97: 4.687746361 | H97: 1.332160855 | I97: -0.3907935277 | J97: 0.1599899634 | K97: 0.4222752298 | L97: 0.1097053236 | M97: 0 | N97: 0 | O97: 0 | P97: 0 | Q97: 0 | R97: 0 | S97: 0 | T97: 0 | U97: 0 | V97: -314.1592654 | W97: 3.975994497 | X97: 0.08058387294 | Y97: -0.3281594708
E98: 0.0005 | F98: 0.048 | G98: 4.679605248 | H98: 1.335492271 | I98: -0.390753239 | J98: 0.1598258981 | K98: 0.4221758064 | L98: 0.1096536701 | M98: 0 | N98: 0 | O98: 0 | P98: 0 | Q98: 0 | R98: 0 | S98: 0 | T98: 0 | U98: 0 | V98: -314.1592654 | W98: 3.974245368 | X98: 0.08057098056 | Y98: -0.3281017973
E99: 0.0005 | F99: 0.0485 | G99: 4.671464976 | H99: 1.338820268 | I99: -0.3907129567 | J99: 0.1596618616 | K99: 0.422076444 | L99: 0.1096020605 | M99: 0 | N99: 0 | O99: 0 | P99: 0 | Q99: 0 | R99: 0 | S99: 0 | T99: 0 | U99: 0 | V99: -314.1592654 | W99: 3.972497725 | X99: 0.08055810569 | Y99: -0.3280441582
E100: 0.0005 | F100: 0.049 | G100: 4.663325542 | H100: 1.342144848 | I100: -0.3906726809 | J100: 0.1594978539 | K100: 0.4219771428 | L100: 0.1095504948 | M100: 0 | N100: 0 | O100: 0 | P100: 0 | Q100: 0 | R100: 0 | S100: 0 | T100: 0 | U100: 0 | V100: -314.1592654 | W100: 3.970751566 | X100: 0.08054524831 | Y100: -0.3279865535
E101: 0.0005 | F101: 0.0495 | G101: 4.655186947 | H101: 1.345466012 | I101: -0.3906324115 | J101: 0.1593338751 | K101: 0.4218779025 | L101: 0.1094989728 | M101: 0 | N101: 0 | O101: 0 | P101: 0 | Q101: 0 | R101: 0 | S101: 0 | T101: 0 | U101: 0 | V101: -314.1592654 | W101: 3.969006892 | X101: 0.08053240843 | Y101: -0.3279289831
E102: 0.0005 | F102: 0.05 | G102: 4.647049191 | H102: 1.34878376 | I102: -0.3905921485 | J102: 0.159169925 | K102: 0.4217787234 | L102: 0.1094474947 | M102: 0 | N102: 0 | O102: 0 | P102: 0 | Q102: 0 | R102: 0 | S102: 0 | T102: 0 | U102: 0 | V102: -314.1592654 | W102: 3.967263701 | X102: 0.08051958604 | Y102: -0.327871447
E103: 0.0005 | F103: 0.0505 | G103: 4.638912274 | H103: 1.352098093 | I103: -0.3905518919 | J103: 0.1590060036 | K103: 0.4216796052 | L103: 0.1093960603 | M103: 0 | N103: 0 | O103: 0 | P103: 0 | Q103: 0 | R103: 0 | S103: 0 | T103: 0 | U103: 0 | V103: -314.1592654 | W103: 3.965521992 | X103: 0.08050678112 | Y103: -0.3278139452
E104: 0.0005 | F104: 0.051 | G104: 4.630776196 | H104: 1.35540901 | I104: -0.3905116417 | J104: 0.158842111 | K104: 0.4215805481 | L104: 0.1093446697 | M104: 0 | N104: 0 | O104: 0 | P104: 0 | Q104: 0 | R104: 0 | S104: 0 | T104: 0 | U104: 0 | V104: -314.1592654 | W104: 3.963781765 | X104: 0.08049399367 | Y104: -0.3277564776
E105: 0.0005 | F105: 0.0515 | G105: 4.622640956 | H105: 1.358716514 | I105: -0.3904713979 | J105: 0.1586782471 | K105: 0.421481552 | L105: 0.1092933229 | M105: 0 | N105: 0 | O105: 0 | P105: 0 | Q105: 0 | R105: 0 | S105: 0 | T105: 0 | U105: 0 | V105: -314.1592654 | W105: 3.962043018 | X105: 0.08048122369 | Y105: -0.3276990443
E106: 0.0005 | F106: 0.052 | G106: 4.614506554 | H106: 1.362020604 | I106: -0.3904311605 | J106: 0.158514412 | K106: 0.421382617 | L106: 0.1092420197 | M106: 0 | N106: 0 | O106: 0 | P106: 0 | Q106: 0 | R106: 0 | S106: 0 | T106: 0 | U106: 0 | V106: -314.1592654 | W106: 3.960305751 | X106: 0.08046847116 | Y106: -0.3276416451
E107: 0.0005 | F107: 0.0525 | G107: 4.606372991 | H107: 1.365321281 | I107: -0.3903909294 | J107: 0.1583506055 | K107: 0.4212837429 | L107: 0.1091907602 | M107: 0 | N107: 0 | O107: 0 | P107: 0 | Q107: 0 | R107: 0 | S107: 0 | T107: 0 | U107: 0 | V107: -314.1592654 | W107: 3.958569962 | X107: 0.08045573608 | Y107: -0.3275842801
E108: 0.0005 | F108: 0.053 | G108: 4.598240265 | H108: 1.368618546 | I108: -0.3903507047 | J108: 0.1581868277 | K108: 0.4211849299 | L108: 0.1091395443 | M108: 0 | N108: 0 | O108: 0 | P108: 0 | Q108: 0 | R108: 0 | S108: 0 | T108: 0 | U108: 0 | V108: -314.1592654 | W108: 3.956835652 | X108: 0.08044301844 | Y108: -0.3275269492
E109: 0.0005 | F109: 0.0535 | G109: 4.590108378 | H109: 1.371912399 | I109: -0.3903104864 | J109: 0.1580230785 | K109: 0.4210861778 | L109: 0.109088372 | M109: 0 | N109: 0 | O109: 0 | P109: 0 | Q109: 0 | R109: 0 | S109: 0 | T109: 0 | U109: 0 | V109: -314.1592654 | W109: 3.955102819 | X109: 0.08043031823 | Y109: -0.3274696525
E110: 0.0005 | F110: 0.054 | G110: 4.581977328 | H110: 1.375202841 | I110: -0.3902702744 | J110: 0.157859358 | K110: 0.4209874868 | L110: 0.1090372434 | M110: 0 | N110: 0 | O110: 0 | P110: 0 | Q110: 0 | R110: 0 | S110: 0 | T110: 0 | U110: 0 | V110: -314.1592654 | W110: 3.953371462 | X110: 0.08041763545 | Y110: -0.3274123898
E111: 0.0005 | F111: 0.0545 | G111: 4.573847117 | H111: 1.378489873 | I111: -0.3902300688 | J111: 0.1576956661 | K111: 0.4208888567 | L111: 0.1089861583 | M111: 0 | N111: 0 | O111: 0 | P111: 0 | Q111: 0 | R111: 0 | S111: 0 | T111: 0 | U111: 0 | V111: -314.1592654 | W111: 3.95164158 | X111: 0.08040497009 | Y111: -0.3273551611
E112: 0.0005 | F112: 0.055 | G112: 4.565717742 | H112: 1.381773494 | I112: -0.3901898694 | J112: 0.1575320028 | K112: 0.4207902876 | L112: 0.1089351168 | M112: 0 | N112: 0 | O112: 0 | P112: 0 | Q112: 0 | R112: 0 | S112: 0 | T112: 0 | U112: 0 | V112: -314.1592654 | W112: 3.949913173 | X112: 0.08039232214 | Y112: -0.3272979665
E113: 0.0005 | F113: 0.0555 | G113: 4.557589205 | H113: 1.385053707 | I113: -0.3901496764 | J113: 0.1573683682 | K113: 0.4206917795 | L113: 0.1088841187 | M113: 0 | N113: 0 | O113: 0 | P113: 0 | Q113: 0 | R113: 0 | S113: 0 | T113: 0 | U113: 0 | V113: -314.1592654 | W113: 3.948186239 | X113: 0.08037969159 | Y113: -0.3272408058
E114: 0.0005 | F114: 0.056 | G114: 4.549461506 | H114: 1.38833051 | I114: -0.3901094898 | J114: 0.157204762 | K114: 0.4205933323 | L114: 0.1088331642 | M114: 0 | N114: 0 | O114: 0 | P114: 0 | Q114: 0 | R114: 0 | S114: 0 | T114: 0 | U114: 0 | V114: -314.1592654 | W114: 3.946460778 | X114: 0.08036707844 | Y114: -0.3271836791
E115: 0.0005 | F115: 0.0565 | G115: 4.541334643 | H115: 1.391603905 | I115: -0.3900693094 | J115: 0.1570411845 | K115: 0.4204949461 | L115: 0.1087822531 | M115: 0 | N115: 0 | O115: 0 | P115: 0 | Q115: 0 | R115: 0 | S115: 0 | T115: 0 | U115: 0 | V115: -314.1592654 | W115: 3.944736789 | X115: 0.08035448268 | Y115: -0.3271265863
E116: 0.0005 | F116: 0.057 | G116: 4.533208618 | H116: 1.394873893 | I116: -0.3900291353 | J116: 0.1568776354 | K116: 0.4203966209 | L116: 0.1087313855 | M116: 0 | N116: 0 | O116: 0 | P116: 0 | Q116: 0 | R116: 0 | S116: 0 | T116: 0 | U116: 0 | V116: -314.1592654 | W116: 3.943014271 | X116: 0.08034190431 | Y116: -0.3270695273
E117: 0.0005 | F117: 0.0575 | G117: 4.525083429 | H117: 1.398140474 | I117: -0.3899889675 | J117: 0.1567141149 | K117: 0.4202983566 | L117: 0.1086805613 | M117: 0 | N117: 0 | O117: 0 | P117: 0 | Q117: 0 | R117: 0 | S117: 0 | T117: 0 | U117: 0 | V117: -314.1592654 | W117: 3.941293223 | X117: 0.0803293433 | Y117: -0.3270125023
E118: 0.0005 | F118: 0.058 | G118: 4.516959077 | H118: 1.401403648 | I118: -0.3899488059 | J118: 0.1565506229 | K118: 0.4202001532 | L118: 0.1086297805 | M118: 0 | N118: 0 | O118: 0 | P118: 0 | Q118: 0 | R118: 0 | S118: 0 | T118: 0 | U118: 0 | V118: -314.1592654 | W118: 3.939573645 | X118: 0.08031679967 | Y118: -0.3269555111
E119: 0.0005 | F119: 0.0585 | G119: 4.508835562 | H119: 1.404663416 | I119: -0.3899086507 | J119: 0.1563871594 | K119: 0.4201020108 | L119: 0.108579043 | M119: 0 | N119: 0 | O119: 0 | P119: 0 | Q119: 0 | R119: 0 | S119: 0 | T119: 0 | U119: 0 | V119: -314.1592654 | W119: 3.937855534 | X119: 0.08030427339 | Y119: -0.3268985537
E120: 0.0005 | F120: 0.059 | G120: 4.500712884 | H120: 1.40791978 | I120: -0.3898685016 | J120: 0.1562237244 | K120: 0.4200039293 | L120: 0.1085283489 | M120: 0 | N120: 0 | O120: 0 | P120: 0 | Q120: 0 | R120: 0 | S120: 0 | T120: 0 | U120: 0 | V120: -314.1592654 | W120: 3.936138892 | X120: 0.08029176447 | Y120: -0.32684163
E121: 0.0005 | F121: 0.0595 | G121: 4.492591041 | H121: 1.411172738 | I121: -0.3898283589 | J121: 0.1560603178 | K121: 0.4199059087 | L121: 0.108477698 | M121: 0 | N121: 0 | O121: 0 | P121: 0 | Q121: 0 | R121: 0 | S121: 0 | T121: 0 | U121: 0 | V121: -314.1592654 | W121: 3.934423715 | X121: 0.0802792729 | Y121: -0.3267847401
E122: 0.0005 | F122: 0.06 | G122: 4.484470035 | H122: 1.414422293 | I122: -0.3897882224 | J122: 0.1558969396 | K122: 0.419807949 | L122: 0.1084270905 | M122: 0 | N122: 0 | O122: 0 | P122: 0 | Q122: 0 | R122: 0 | S122: 0 | T122: 0 | U122: 0 | V122: -314.1592654 | W122: 3.932710005 | X122: 0.08026679866 | Y122: -0.3267278839
E123: 0.0005 | F123: 0.0605 | G123: 4.476349865 | H123: 1.417668444 | I123: -0.3897480921 | J123: 0.1557335899 | K123: 0.4197100503 | L123: 0.1083765262 | M123: 0 | N123: 0 | O123: 0 | P123: 0 | Q123: 0 | R123: 0 | S123: 0 | T123: 0 | U123: 0 | V123: -314.1592654 | W123: 3.93099776 | X123: 0.08025434175 | Y123: -0.3266710614
E124: 0.0005 | F124: 0.061 | G124: 4.468230531 | H124: 1.420911193 | I124: -0.389707968 | J124: 0.1555702686 | K124: 0.4196122124 | L124: 0.1083260052 | M124: 0 | N124: 0 | O124: 0 | P124: 0 | Q124: 0 | R124: 0 | S124: 0 | T124: 0 | U124: 0 | V124: -314.1592654 | W124: 3.929286978 | X124: 0.08024190217 | Y124: -0.3266142725
E125: 0.0005 | F125: 0.0615 | G125: 4.460112033 | H125: 1.424150539 | I125: -0.3896678502 | J125: 0.1554069756 | K125: 0.4195144354 | L125: 0.1082755274 | M125: 0 | N125: 0 | O125: 0 | P125: 0 | Q125: 0 | R125: 0 | S125: 0 | T125: 0 | U125: 0 | V125: -314.1592654 | W125: 3.92757766 | X125: 0.0802294799 | Y125: -0.3265575173
E126: 0.0005 | F126: 0.062 | G126: 4.451994371 | H126: 1.427386484 | I126: -0.3896277385 | J126: 0.155243711 | K126: 0.4194167193 | L126: 0.1082250928 | M126: 0 | N126: 0 | O126: 0 | P126: 0 | Q126: 0 | R126: 0 | S126: 0 | T126: 0 | U126: 0 | V126: -314.1592654 | W126: 3.925869805 | X126: 0.08021707495 | Y126: -0.3265007957
E127: 0.0005 | F127: 0.0625 | G127: 4.443877544 | H127: 1.430619027 | I127: -0.3895876331 | J127: 0.1550804748 | K127: 0.4193190641 | L127: 0.1081747013 | M127: 0 | N127: 0 | O127: 0 | P127: 0 | Q127: 0 | R127: 0 | S127: 0 | T127: 0 | U127: 0 | V127: -314.1592654 | W127: 3.92416341 | X127: 0.08020468729 | Y127: -0.3264441076
E128: 0.0005 | F128: 0.063 | G128: 4.435761553 | H128: 1.43384817 | I128: -0.3895475338 | J128: 0.1549172669 | K128: 0.4192214698 | L128: 0.1081243529 | M128: 0 | N128: 0 | O128: 0 | P128: 0 | Q128: 0 | R128: 0 | S128: 0 | T128: 0 | U128: 0 | V128: -314.1592654 | W128: 3.922458477 | X128: 0.08019231693 | Y128: -0.326387453
E129: 0.0005 | F129: 0.0635 | G129: 4.427646397 | H129: 1.437073914 | I129: -0.3895074408 | J129: 0.1547540874 | K129: 0.4191239363 | L129: 0.1080740477 | M129: 0 | N129: 0 | O129: 0 | P129: 0 | Q129: 0 | R129: 0 | S129: 0 | T129: 0 | U129: 0 | V129: -314.1592654 | W129: 3.920755003 | X129: 0.08017996386 | Y129: -0.326330832
E130: =IF(OR(G130<=_r,G130>=backwall-_r,H130<=_r),dt_small,dt) -> 0.0005 | F130: 0.064 | G130: 4.419532076 | H130: 1.440296258 | I130: -0.3894673539 | J130: 0.1545909361 | K130: 0.4190264637 | L130: =_kd*K130*K130 -> 0.1080237855 | M130: =MAX(_r-G130,0) -> 0 | N130: =MAX(_r-H130,0) -> 0 | O130: =MAX(G130-backwall+_r,0) -> 0 | P130: =IF(I130<0,M130*(_ks+hyst),M130*(_ks-hyst)) -> 0 | Q130: =IF(J130<0,N130*(_ks+hyst),N130*(_ks-hyst)) -> 0 | R130: =IF(I130>0,O130*(_ks+hyst),O130*(_ks-hyst)) -> 0 | S130: 0 | T130: 0 | U130: 0 | V130: -314.1592654 | W130: =0.5*K130*K130/_m+0.5*_I*V130*V130 -> 3.919052988 | X130: =-L130*I130/K130+P130-R130+_km*V130*J130 -> 0.08016762807 | Y130: =-_m*_g-L130*J130/K130+Q130-_km*V130*I130 -> -0.3262742444
E131: 0.0005 | F131: 0.0645 | G131: 4.41141859 | H131: 1.443515203 | I131: -0.3894272731 | J131: 0.1544278131 | K131: 0.4189290519 | L131: 0.1079735664 | M131: 0 | N131: 0 | O131: 0 | P131: 0 | Q131: 0 | R131: 0 | S131: =IF(AND(M131=0,M130>0),-J131/_m/_r,0) -> 0 | T131: =IF(AND(N131=0,N130>0),I131/_m/_r,0) -> 0 | U131: =IF(AND(O131=0,O130>0),J131/_m/_r,0) -> 0 | V131: -314.1592654 | W131: 3.917352431 | X131: 0.08015530955 | Y131: -0.3262176903
D132: =IF(AND(M132=0,M133>0),"in1",IF(AND(M132=0,M131>0),"out1",IF(AND(N132=0,N133>0),"in2",IF(AND(N132=0,N131>0),"out2",IF(AND(O132=0,O133>0),"in3",IF(AND(O132=0,O131>0),"out3","")))))) ->  | E132: 0.0005 | F132: =F131+E131 -> 0.065 | G132: 4.40330594 | H132: 1.44673075 | I132: -0.3893871986 | J132: 0.1542647184 | K132: =SQRT(I132*I132+J132*J132) -> 0.418831701 | L132: 0.1079233904 | M132: 0 | N132: 0 | O132: 0 | P132: 0 | Q132: 0 | R132: 0 | S132: 0 | T132: 0 | U132: 0 | V132: =IF(AND(S132=0,T132=0,U132=0),V131,S132+T132+U132) -> -314.1592654 | W132: 3.915653332 | X132: 0.0801430083 | Y132: -0.3261611696
E133: 0.0005 | F133: 0.0655 | G133: =G132+$E132*(23*I132-16*I131+5*I130)/12/_m -> 4.395194124 | H133: =H132+$E132*(23*J132-16*J131+5*J130)/12/_m -> 1.4499429 | I133: =I132+$E132*(23*X132-16*X131+5*X130)/12 -> -0.3893471301 | J133: =J132+$E132*(23*Y132-16*Y131+5*Y130)/12 -> 0.1541016519 | K133: 0.4187344109 | L133: 0.1078732573 | M133: 0 | N133: 0 | O133: 0 | P133: 0 | Q133: 0 | R133: 0 | S133: 0 | T133: 0 | U133: 0 | V133: -314.1592654 | W133: 3.913955688 | X133: 0.0801307243 | Y133: -0.3261046823
E134: 0.0005 | F134: 0.066 | G134: 4.387083142 | H134: 1.453151652 | I134: -0.3893070678 | J134: 0.1539386137 | K134: 0.4186371817 | L134: 0.1078231673 | M134: 0 | N134: 0 | O134: 0 | P134: 0 | Q134: 0 | R134: 0 | S134: 0 | T134: 0 | U134: 0 | V134: -314.1592654 | W134: 3.912259501 | X134: 0.08011845756 | Y134: -0.3260482284
E135: 0.0005 | F135: 0.0665 | G135: 4.378972996 | H135: 1.456357009 | I135: -0.3892670117 | J135: 0.1537756037 | K135: 0.4185400132 | L135: 0.1077731201 | M135: 0 | N135: 0 | O135: 0 | P135: 0 | Q135: 0 | R135: 0 | S135: 0 | T135: 0 | U135: 0 | V135: -314.1592654 | W135: 3.910564767 | X135: 0.08010620806 | Y135: -0.3259918077
E136: 0.0005 | F136: 0.067 | G136: 4.370863684 | H136: 1.459558969 | I136: -0.3892269616 | J136: 0.1536126219 | K136: 0.4184429056 | L136: 0.107723116 | M136: 0 | N136: 0 | O136: 0 | P136: 0 | Q136: 0 | R136: 0 | S136: 0 | T136: 0 | U136: 0 | V136: -314.1592654 | W136: 3.908871488 | X136: 0.0800939758 | Y136: -0.3259354204
E137: 0.0005 | F137: 0.0675 | G137: 4.362755206 | H137: 1.462757535 | I137: -0.3891869177 | J137: 0.1534496683 | K137: 0.4183458588 | L137: 0.1076731547 | M137: 0 | N137: 0 | O137: 0 | P137: 0 | Q137: 0 | R137: 0 | S137: 0 | T137: 0 | U137: 0 | V137: -314.1592654 | W137: 3.907179662 | X137: 0.08008176077 | Y137: -0.3258790664
E138: 0.0005 | F138: 0.068 | G138: 4.354647562 | H138: 1.465952706 | I138: -0.3891468799 | J138: 0.1532867428 | K138: 0.4182488728 | L138: 0.1076232363 | M138: 0 | N138: 0 | O138: 0 | P138: 0 | Q138: 0 | R138: 0 | S138: 0 | T138: 0 | U138: 0 | V138: -314.1592654 | W138: 3.905489288 | X138: 0.08006956297 | Y138: -0.3258227455
E139: 0.0005 | F139: 0.0685 | G139: 4.346540752 | H139: 1.469144483 | I139: -0.3891068481 | J139: 0.1531238455 | K139: 0.4181519477 | L139: 0.1075733608 | M139: 0 | N139: 0 | O139: 0 | P139: 0 | Q139: 0 | R139: 0 | S139: 0 | T139: 0 | U139: 0 | V139: -314.1592654 | W139: 3.903800364 | X139: 0.08005738238 | Y139: -0.3257664579
E140: 0.0005 | F140: 0.069 | G140: 4.338434777 | H140: 1.472332866 | I140: -0.3890668225 | J140: 0.1529609764 | K140: 0.4180550833 | L140: 0.1075235281 | M140: 0 | N140: 0 | O140: 0 | P140: 0 | Q140: 0 | R140: 0 | S140: 0 | T140: 0 | U140: 0 | V140: -314.1592654 | W140: 3.902112892 | X140: 0.08004521899 | Y140: -0.3257102035
E141: 0.0005 | F141: 0.0695 | G141: 4.330329635 | H141: 1.475517857 | I141: -0.3890268029 | J141: 0.1527981353 | K141: 0.4179582797 | L141: 0.1074737382 | M141: 0 | N141: 0 | O141: 0 | P141: 0 | Q141: 0 | R141: 0 | S141: 0 | T141: 0 | U141: 0 | V141: -314.1592654 | W141: 3.900426869 | X141: 0.08003307281 | Y141: -0.3256539822
E142: 0.0005 | F142: 0.07 | G142: 4.322225326 | H142: 1.478699455 | I142: -0.3889867894 | J142: 0.1526353224 | K142: 0.4178615368 | L142: 0.107423991 | M142: 0 | N142: 0 | O142: 0 | P142: 0 | Q142: 0 | R142: 0 | S142: 0 | T142: 0 | U142: 0 | V142: -314.1592654 | W142: 3.898742294 | X142: 0.08002094382 | Y142: -0.3255977941
E143: 0.0005 | F143: 0.0705 | G143: 4.314121852 | H143: 1.481877662 | I143: -0.388946782 | J143: 0.1524725375 | K143: 0.4177648548 | L143: 0.1073742867 | M143: 0 | N143: 0 | O143: 0 | P143: 0 | Q143: 0 | R143: 0 | S143: 0 | T143: 0 | U143: 0 | V143: -314.1592654 | W143: 3.897059168 | X143: 0.08000883202 | Y143: -0.325541639
E144: 0.0005 | F144: 0.071 | G144: 4.30601921 | H144: 1.485052478 | I144: -0.3889067806 | J144: 0.1523097807 | K144: 0.4176682335 | L144: 0.107324625 | M144: 0 | N144: 0 | O144: 0 | P144: 0 | Q144: 0 | R144: 0 | S144: 0 | T144: 0 | U144: 0 | V144: -314.1592654 | W144: 3.895377488 | X144: 0.0799967374 | Y144: -0.325485517
E145: 0.0005 | F145: 0.0715 | G145: 4.297917403 | H145: 1.488223903 | I145: -0.3888667852 | J145: 0.152147052 | K145: 0.417571673 | L145: 0.1072750061 | M145: 0 | N145: 0 | O145: 0 | P145: 0 | Q145: 0 | R145: 0 | S145: 0 | T145: 0 | U145: 0 | V145: -314.1592654 | W145: 3.893697255 | X145: 0.07998465995 | Y145: -0.3254294281
E146: 0.0005 | F146: 0.072 | G146: 4.289816428 | H146: 1.491391939 | I146: -0.3888267959 | J146: 0.1519843513 | K146: 0.4174751732 | L146: 0.1072254299 | M146: 0 | N146: 0 | O146: 0 | P146: 0 | Q146: 0 | R146: 0 | S146: 0 | T146: 0 | U146: 0 | V146: -314.1592654 | W146: 3.892018467 | X146: 0.07997259967 | Y146: -0.3253733721
E147: 0.0005 | F147: 0.0725 | G147: 4.281716286 | H147: 1.494556585 | I147: -0.3887868126 | J147: 0.1518216786 | K147: 0.4173787342 | L147: 0.1071758963 | M147: 0 | N147: 0 | O147: 0 | P147: 0 | Q147: 0 | R147: 0 | S147: 0 | T147: 0 | U147: 0 | V147: -314.1592654 | W147: 3.890341124 | X147: 0.07996055655 | Y147: -0.3253173492
E148: 0.0005 | F148: 0.073 | G148: 4.273616977 | H148: 1.497717842 | I148: -0.3887468353 | J148: 0.1516590339 | K148: 0.4172823559 | L148: 0.1071264054 | M148: 0 | N148: 0 | O148: 0 | P148: 0 | Q148: 0 | R148: 0 | S148: 0 | T148: 0 | U148: 0 | V148: -314.1592654 | W148: 3.888665224 | X148: 0.07994853058 | Y148: -0.3252613591
E149: 0.0005 | F149: 0.0735 | G149: 4.265518501 | H149: 1.500875711 | I149: -0.3887068641 | J149: 0.1514964172 | K149: 0.4171860384 | L149: 0.107076957 | M149: 0 | N149: 0 | O149: 0 | P149: 0 | Q149: 0 | R149: 0 | S149: 0 | T149: 0 | U149: 0 | V149: -314.1592654 | W149: 3.886990767 | X149: 0.07993652175 | Y149: -0.325205402
E150: 0.0005 | F150: 0.074 | G150: 4.257420858 | H150: 1.504030193 | I150: -0.3886668988 | J150: 0.1513338285 | K150: 0.4170897816 | L150: 0.1070275512 | M150: 0 | N150: 0 | O150: 0 | P150: 0 | Q150: 0 | R150: 0 | S150: 0 | T150: 0 | U150: 0 | V150: -314.1592654 | W150: 3.885317751 | X150: 0.07992453006 | Y150: -0.3251494778
E151: 0.0005 | F151: 0.0745 | G151: 4.249324047 | H151: 1.507181288 | I151: -0.3886269396 | J151: 0.1511712678 | K151: 0.4169935855 | L151: 0.106978188 | M151: 0 | N151: 0 | O151: 0 | P151: 0 | Q151: 0 | R151: 0 | S151: 0 | T151: 0 | U151: 0 | V151: -314.1592654 | W151: 3.883646177 | X151: 0.0799125555 | Y151: -0.3250935865
E152: 0.0005 | F152: 0.075 | G152: 4.241228069 | H152: 1.510328996 | I152: -0.3885869863 | J152: 0.1510087349 | K152: 0.4168974501 | L152: 0.1069288674 | M152: 0 | N152: 0 | O152: 0 | P152: 0 | Q152: 0 | R152: 0 | S152: 0 | T152: 0 | U152: 0 | V152: -314.1592654 | W152: 3.881976043 | X152: 0.07990059806 | Y152: -0.3250377279
E153: 0.0005 | F153: 0.0755 | G153: 4.233132923 | H153: 1.513473319 | I153: -0.388547039 | J153: 0.15084623 | K153: 0.4168013755 | L153: 0.1068795892 | M153: 0 | N153: 0 | O153: 0 | P153: 0 | Q153: 0 | R153: 0 | S153: 0 | T153: 0 | U153: 0 | V153: -314.1592654 | W153: 3.880307349 | X153: 0.07988865774 | Y153: -0.3249819022
E154: 0.0005 | F154: 0.076 | G154: 4.225038609 | H154: 1.516614256 | I154: -0.3885070976 | J154: 0.150683753 | K154: 0.4167053615 | L154: 0.1068303535 | M154: 0 | N154: 0 | O154: 0 | P154: 0 | Q154: 0 | R154: 0 | S154: 0 | T154: 0 | U154: 0 | V154: -314.1592654 | W154: 3.878640093 | X154: 0.07987673452 | Y154: -0.3249261093
E155: 0.0005 | F155: 0.0765 | G155: 4.216945127 | H155: 1.519751808 | I155: -0.3884671622 | J155: 0.1505213039 | K155: 0.4166094083 | L155: 0.1067811603 | M155: 0 | N155: 0 | O155: 0 | P155: 0 | Q155: 0 | R155: 0 | S155: 0 | T155: 0 | U155: 0 | V155: -314.1592654 | W155: 3.876974275 | X155: 0.07986482841 | Y155: -0.3248703491
E156: 0.0005 | F156: 0.077 | G156: 4.208852477 | H156: 1.522885977 | I156: -0.3884272328 | J156: 0.1503588827 | K156: 0.4165135157 | L156: 0.1067320095 | M156: 0 | N156: 0 | O156: 0 | P156: 0 | Q156: 0 | R156: 0 | S156: 0 | T156: 0 | U156: 0 | V156: -314.1592654 | W156: 3.875309894 | X156: 0.0798529394 | Y156: -0.3248146216
E157: 0.0005 | F157: 0.0775 | G157: 4.200760659 | H157: 1.526016762 | I157: -0.3883873093 | J157: 0.1501964893 | K157: 0.4164176838 | L157: 0.1066829011 | M157: 0 | N157: 0 | O157: 0 | P157: 0 | Q157: 0 | R157: 0 | S157: 0 | T157: 0 | U157: 0 | V157: -314.1592654 | W157: 3.873646949 | X157: 0.07984106747 | Y157: -0.3247589268
E158: 0.0005 | F158: 0.078 | G158: 4.192669672 | H158: 1.529144164 | I158: -0.3883473917 | J158: 0.1500341237 | K158: 0.4163219126 | L158: 0.1066338351 | M158: 0 | N158: 0 | O158: 0 | P158: 0 | Q158: 0 | R158: 0 | S158: 0 | T158: 0 | U158: 0 | V158: -314.1592654 | W158: 3.871985439 | X158: 0.07982921262 | Y158: -0.3247032646
E159: 0.0005 | F159: 0.0785 | G159: 4.184579517 | H159: 1.532268184 | I159: -0.3883074801 | J159: 0.149871786 | K159: 0.4162262021 | L159: 0.1065848115 | M159: 0 | N159: 0 | O159: 0 | P159: 0 | Q159: 0 | R159: 0 | S159: 0 | T159: 0 | U159: 0 | V159: -314.1592654 | W159: 3.870325364 | X159: 0.07981737484 | Y159: -0.3246476351
E160: 0.0005 | F160: 0.079 | G160: 4.176490194 | H160: 1.535388822 | I160: -0.3882675743 | J160: 0.1497094761 | K160: 0.4161305522 | L160: 0.1065358302 | M160: 0 | N160: 0 | O160: 0 | P160: 0 | Q160: 0 | R160: 0 | S160: 0 | T160: 0 | U160: 0 | V160: -314.1592654 | W160: 3.868666722 | X160: 0.07980555413 | Y160: -0.3245920382
E161: 0.0005 | F161: 0.0795 | G161: 4.168401702 | H161: 1.538506079 | I161: -0.3882276745 | J161: 0.149547194 | K161: 0.416034963 | L161: 0.1064868912 | M161: 0 | N161: 0 | O161: 0 | P161: 0 | Q161: 0 | R161: 0 | S161: 0 | T161: 0 | U161: 0 | V161: -314.1592654 | W161: 3.867009513 | X161: 0.07979375048 | Y161: -0.3245364738
E162: 0.0005 | F162: 0.08 | G162: 4.160314041 | H162: 1.541619955 | I162: -0.3881877806 | J162: 0.1493849396 | K162: 0.4159394345 | L162: 0.1064379945 | M162: 0 | N162: 0 | O162: 0 | P162: 0 | Q162: 0 | R162: 0 | S162: 0 | T162: 0 | U162: 0 | V162: -314.1592654 | W162: 3.865353736 | X162: 0.07978196389 | Y162: -0.324480942
E163: 0.0005 | F163: 0.0805 | G163: 4.152227211 | H163: 1.544730452 | I163: -0.3881478925 | J163: 0.149222713 | K163: 0.4158439666 | L163: 0.10638914 | M163: 0 | N163: 0 | O163: 0 | P163: 0 | Q163: 0 | R163: 0 | S163: 0 | T163: 0 | U163: 0 | V163: -314.1592654 | W163: 3.86369939 | X163: 0.07977019433 | Y163: -0.3244254427
E164: 0.0005 | F164: 0.081 | G164: 4.144141212 | H164: 1.547837569 | I164: -0.3881080104 | J164: 0.1490605142 | K164: 0.4157485594 | L164: 0.1063403278 | M164: 0 | N164: 0 | O164: 0 | P164: 0 | Q164: 0 | R164: 0 | S164: 0 | T164: 0 | U164: 0 | V164: -314.1592654 | W164: 3.862046474 | X164: 0.07975844182 | Y164: -0.3243699759
E165: 0.0005 | F165: 0.0815 | G165: 4.136056044 | H165: 1.550941307 | I165: -0.3880681341 | J165: 0.148898343 | K165: 0.4156532127 | L165: 0.1062915578 | M165: 0 | N165: 0 | O165: 0 | P165: 0 | Q165: 0 | R165: 0 | S165: 0 | T165: 0 | U165: 0 | V165: -314.1592654 | W165: 3.860394988 | X165: 0.07974670634 | Y165: -0.3243145416
E166: 0.0005 | F166: 0.082 | G166: 4.127971706 | H166: 1.554041666 | I166: -0.3880282637 | J166: 0.1487361996 | K166: 0.4155579267 | L166: 0.10624283 | M166: 0 | N166: 0 | O166: 0 | P166: 0 | Q166: 0 | R166: 0 | S166: 0 | T166: 0 | U166: 0 | V166: -314.1592654 | W166: 3.85874493 | X166: 0.07973498788 | Y166: -0.3242591396
E167: 0.0005 | F167: 0.0825 | G167: 4.119888199 | H167: 1.557138649 | I167: -0.3879883991 | J167: 0.1485740839 | K167: 0.4154627014 | L167: 0.1061941444 | M167: 0 | N167: 0 | O167: 0 | P167: 0 | Q167: 0 | R167: 0 | S167: 0 | T167: 0 | U167: 0 | V167: -314.1592654 | W167: 3.8570963 | X167: 0.07972328644 | Y167: -0.3242037701
E168: 0.0005 | F168: 0.083 | G168: 4.111805523 | H168: 1.560232254 | I168: -0.3879485404 | J168: 0.1484119959 | K168: 0.4153675366 | L168: 0.1061455009 | M168: 0 | N168: 0 | O168: 0 | P168: 0 | Q168: 0 | R168: 0 | S168: 0 | T168: 0 | U168: 0 | V168: -314.1592654 | W168: 3.855449097 | X168: 0.079711602 | Y168: -0.3241484329
E169: 0.0005 | F169: 0.0835 | G169: 4.103723677 | H169: 1.563322482 | I169: -0.3879086875 | J169: 0.1482499355 | K169: 0.4152724325 | L169: 0.1060968995 | M169: 0 | N169: 0 | O169: 0 | P169: 0 | Q169: 0 | R169: 0 | S169: 0 | T169: 0 | U169: 0 | V169: -314.1592654 | W169: 3.85380332 | X169: 0.07969993458 | Y169: -0.3240931281
E170: 0.0005 | F170: 0.084 | G170: 4.095642661 | H170: 1.566409334 | I170: -0.3878688404 | J170: 0.1480879027 | K170: 0.415177389 | L170: 0.1060483402 | M170: 0 | N170: 0 | O170: 0 | P170: 0 | Q170: 0 | R170: 0 | S170: 0 | T170: 0 | U170: 0 | V170: -314.1592654 | W170: 3.852158968 | X170: 0.07968828414 | Y170: -0.3240378556
E171: 0.0005 | F171: 0.0845 | G171: 4.087562475 | H171: 1.569492811 | I171: -0.3878289992 | J171: 0.1479258976 | K171: 0.415082406 | L171: 0.105999823 | M171: 0 | N171: 0 | O171: 0 | P171: 0 | Q171: 0 | R171: 0 | S171: 0 | T171: 0 | U171: 0 | V171: -314.1592654 | W171: 3.850516041 | X171: 0.0796766507 | Y171: -0.3239826153
E172: 0.0005 | F172: 0.085 | G172: 4.079483119 | H172: 1.572572914 | I172: -0.3877891638 | J172: 0.1477639201 | K172: 0.4149874837 | L172: 0.1059513478 | M172: 0 | N172: 0 | O172: 0 | P172: 0 | Q172: 0 | R172: 0 | S172: 0 | T172: 0 | U172: 0 | V172: -314.1592654 | W172: 3.848874537 | X172: 0.07966503424 | Y172: -0.3239274073
E173: 0.0005 | F173: 0.0855 | G173: 4.071404593 | H173: 1.575649642 | I173: -0.3877493342 | J173: 0.1476019702 | K173: 0.414892622 | L173: 0.1059029146 | M173: 0 | N173: 0 | O173: 0 | P173: 0 | Q173: 0 | R173: 0 | S173: 0 | T173: 0 | U173: 0 | V173: -314.1592654 | W173: 3.847234457 | X173: 0.07965343475 | Y173: -0.3238722316
E174: 0.0005 | F174: 0.086 | G174: 4.063326897 | H174: 1.578722996 | I174: -0.3877095103 | J174: 0.1474400479 | K174: 0.4147978208 | L174: 0.1058545234 | M174: 0 | N174: 0 | O174: 0 | P174: 0 | Q174: 0 | R174: 0 | S174: 0 | T174: 0 | U174: 0 | V174: -314.1592654 | W174: 3.845595798 | X174: 0.07964185224 | Y174: -0.323817088
E175: 0.0005 | F175: 0.0865 | G175: 4.05525003 | H175: 1.581792977 | I175: -0.3876696923 | J175: 0.1472781531 | K175: 0.4147030802 | L175: 0.1058061742 | M175: 0 | N175: 0 | O175: 0 | P175: 0 | Q175: 0 | R175: 0 | S175: 0 | T175: 0 | U175: 0 | V175: -314.1592654 | W175: 3.84395856 | X175: 0.07963028668 | Y175: -0.3237619766
E176: 0.0005 | F176: 0.087 | G176: 4.047173993 | H176: 1.584859586 | I176: -0.3876298801 | J176: 0.1471162859 | K176: 0.4146084002 | L176: 0.1057578669 | M176: 0 | N176: 0 | O176: 0 | P176: 0 | Q176: 0 | R176: 0 | S176: 0 | T176: 0 | U176: 0 | V176: -314.1592654 | W176: 3.842322743 | X176: 0.07961873808 | Y176: -0.3237068974
E177: 0.0005 | F177: 0.0875 | G177: 4.039098785 | H177: 1.587922823 | I177: -0.3875900736 | J177: 0.1469544462 | K177: 0.4145137807 | L177: 0.1057096015 | M177: 0 | N177: 0 | O177: 0 | P177: 0 | Q177: 0 | R177: 0 | S177: 0 | T177: 0 | U177: 0 | V177: -314.1592654 | W177: 3.840688345 | X177: 0.07960720642 | Y177: -0.3236518502
E178: 0.0005 | F178: 0.088 | G178: 4.031024407 | H178: 1.590982688 | I178: -0.3875502729 | J178: 0.146792634 | K178: 0.4144192218 | L178: 0.1056613781 | M178: 0 | N178: 0 | O178: 0 | P178: 0 | Q178: 0 | R178: 0 | S178: 0 | T178: 0 | U178: 0 | V178: -314.1592654 | W178: 3.839055366 | X178: 0.07959569171 | Y178: -0.3235968351
E179: 0.0005 | F179: 0.0885 | G179: 4.022950857 | H179: 1.594039182 | I179: -0.3875104779 | J179: 0.1466308494 | K179: 0.4143247234 | L179: 0.1056131965 | M179: 0 | N179: 0 | O179: 0 | P179: 0 | Q179: 0 | R179: 0 | S179: 0 | T179: 0 | U179: 0 | V179: -314.1592654 | W179: 3.837423804 | X179: 0.07958419393 | Y179: -0.3235418521
E180: 0.0005 | F180: 0.089 | G180: 4.014878137 | H180: 1.597092307 | I180: -0.3874706887 | J180: 0.1464690922 | K180: 0.4142302856 | L180: 0.1055650567 | M180: 0 | N180: 0 | O180: 0 | P180: 0 | Q180: 0 | R180: 0 | S180: 0 | T180: 0 | U180: 0 | V180: -314.1592654 | W180: 3.83579366 | X180: 0.07957271307 | Y180: -0.3234869011
E181: 0.0005 | F181: 0.0895 | G181: 4.006806245 | H181: 1.600142062 | I181: -0.3874309052 | J181: 0.1463073624 | K181: 0.4141359083 | L181: 0.1055169588 | M181: 0 | N181: 0 | O181: 0 | P181: 0 | Q181: 0 | R181: 0 | S181: 0 | T181: 0 | U181: 0 | V181: -314.1592654 | W181: 3.834164932 | X181: 0.07956124913 | Y181: -0.3234319821
E182: 0.0005 | F182: 0.09 | G182: 3.998735182 | H182: 1.603188447 | I182: -0.3873911274 | J182: 0.1461456602 | K182: 0.4140415916 | L182: 0.1054689027 | M182: 0 | N182: 0 | O182: 0 | P182: 0 | Q182: 0 | R182: 0 | S182: 0 | T182: 0 | U182: 0 | V182: -314.1592654 | W182: 3.83253762 | X182: 0.07954980211 | Y182: -0.3233770951
E183: 0.0005 | F183: 0.0905 | G183: 3.990664948 | H183: 1.606231464 | I183: -0.3873513554 | J183: 0.1459839853 | K183: 0.4139473354 | L183: 0.1054208884 | M183: 0 | N183: 0 | O183: 0 | P183: 0 | Q183: 0 | R183: 0 | S183: 0 | T183: 0 | U183: 0 | V183: -314.1592654 | W183: 3.830911722 | X183: 0.07953837199 | Y183: -0.32332224
E184: 0.0005 | F184: 0.091 | G184: 3.982595542 | H184: 1.609271113 | I184: -0.387311589 | J184: 0.1458223379 | K184: 0.4138531397 | L184: 0.1053729158 | M184: 0 | N184: 0 | O184: 0 | P184: 0 | Q184: 0 | R184: 0 | S184: 0 | T184: 0 | U184: 0 | V184: -314.1592654 | W184: 3.829287237 | X184: 0.07952695878 | Y184: -0.3232674168
E185: 0.0005 | F185: 0.0915 | G185: 3.974526965 | H185: 1.612307395 | I185: -0.3872718284 | J185: 0.1456607179 | K185: 0.4137590045 | L185: 0.1053249849 | M185: 0 | N185: 0 | O185: 0 | P185: 0 | Q185: 0 | R185: 0 | S185: 0 | T185: 0 | U185: 0 | V185: -314.1592654 | W185: 3.827664166 | X185: 0.07951556245 | Y185: -0.3232126255
E186: 0.0005 | F186: 0.092 | G186: 3.966459216 | H186: 1.61534031 | I186: -0.3872320735 | J186: 0.1454991253 | K186: 0.4136649298 | L186: 0.1052770957 | M186: 0 | N186: 0 | O186: 0 | P186: 0 | Q186: 0 | R186: 0 | S186: 0 | T186: 0 | U186: 0 | V186: -314.1592654 | W186: 3.826042507 | X186: 0.07950418301 | Y186: -0.3231578661
E187: 0.0005 | F187: 0.0925 | G187: 3.958392295 | H187: 1.618369859 | I187: -0.3871923242 | J187: 0.1453375601 | K187: 0.4135709157 | L187: 0.1052292482 | M187: 0 | N187: 0 | O187: 0 | P187: 0 | Q187: 0 | R187: 0 | S187: 0 | T187: 0 | U187: 0 | V187: -314.1592654 | W187: 3.824422259 | X187: 0.07949282044 | Y187: -0.3231031384
E188: 0.0005 | F188: 0.093 | G188: 3.950326203 | H188: 1.621396042 | I188: -0.3871525806 | J188: 0.1451760222 | K188: 0.413476962 | L188: 0.1051814424 | M188: 0 | N188: 0 | O188: 0 | P188: 0 | Q188: 0 | R188: 0 | S188: 0 | T188: 0 | U188: 0 | V188: -314.1592654 | W188: 3.822803422 | X188: 0.07948147475 | Y188: -0.3230484426
E189: 0.0005 | F189: 0.0935 | G189: 3.942260938 | H189: 1.62441886 | I189: -0.3871128427 | J189: 0.1450145116 | K189: 0.4133830688 | L189: 0.1051336782 | M189: 0 | N189: 0 | O189: 0 | P189: 0 | Q189: 0 | R189: 0 | S189: 0 | T189: 0 | U189: 0 | V189: -314.1592654 | W189: 3.821185995 | X189: 0.07947014592 | Y189: -0.3229937785
E190: 0.0005 | F190: 0.094 | G190: 3.934196501 | H190: 1.627438314 | I190: -0.3870731105 | J190: 0.1448530284 | K190: 0.4132892361 | L190: 0.1050859556 | M190: 0 | N190: 0 | O190: 0 | P190: 0 | Q190: 0 | R190: 0 | S190: 0 | T190: 0 | U190: 0 | V190: -314.1592654 | W190: 3.819569976 | X190: 0.07945883395 | Y190: -0.3229391462
E191: 0.0005 | F191: 0.0945 | G191: 3.926132891 | H191: 1.630454403 | I191: -0.3870333839 | J191: 0.1446915725 | K191: 0.4131954639 | L191: 0.1050382746 | M191: 0 | N191: 0 | O191: 0 | P191: 0 | Q191: 0 | R191: 0 | S191: 0 | T191: 0 | U191: 0 | V191: -314.1592654 | W191: 3.817955366 | X191: 0.07944753883 | Y191: -0.3228845456
E192: 0.0005 | F192: 0.095 | G192: 3.91807011 | H192: 1.633467129 | I192: -0.3869936629 | J192: 0.1445301438 | K192: 0.4131017522 | L192: 0.1049906351 | M192: 0 | N192: 0 | O192: 0 | P192: 0 | Q192: 0 | R192: 0 | S192: 0 | T192: 0 | U192: 0 | V192: -314.1592654 | W192: 3.816342163 | X192: 0.07943626055 | Y192: -0.3228299767
E193: 0.0005 | F193: 0.0955 | G193: 3.910008155 | H193: 1.636476493 | I193: -0.3869539476 | J193: 0.1443687425 | K193: 0.4130081009 | L193: 0.1049430372 | M193: 0 | N193: 0 | O193: 0 | P193: 0 | Q193: 0 | R193: 0 | S193: 0 | T193: 0 | U193: 0 | V193: -314.1592654 | W193: 3.814730366 | X193: 0.07942499911 | Y193: -0.3227754394
E194: =IF(OR(G194<=_r,G194>=backwall-_r,H194<=_r),dt_small,dt) -> 0.0005 | F194: 0.096 | G194: 3.901947028 | H194: 1.639482494 | I194: -0.3869142379 | J194: 0.1442073684 | K194: 0.4129145101 | L194: =_kd*K194*K194 -> 0.1048954808 | M194: =MAX(_r-G194,0) -> 0 | N194: =MAX(_r-H194,0) -> 0 | O194: =MAX(G194-backwall+_r,0) -> 0 | P194: =IF(I194<0,M194*(_ks+hyst),M194*(_ks-hyst)) -> 0 | Q194: =IF(J194<0,N194*(_ks+hyst),N194*(_ks-hyst)) -> 0 | R194: =IF(I194>0,O194*(_ks+hyst),O194*(_ks-hyst)) -> 0 | S194: 0 | T194: 0 | U194: 0 | V194: -314.1592654 | W194: =0.5*K194*K194/_m+0.5*_I*V194*V194 -> 3.813119975 | X194: =-L194*I194/K194+P194-R194+_km*V194*J194 -> 0.07941375449 | Y194: =-_m*_g-L194*J194/K194+Q194-_km*V194*I194 -> -0.3227209337
E195: 0.0005 | F195: 0.0965 | G195: 3.893886729 | H195: 1.642485133 | I195: -0.3868745339 | J195: 0.1440460215 | K195: 0.4128209797 | L195: 0.1048479659 | M195: 0 | N195: 0 | O195: 0 | P195: 0 | Q195: 0 | R195: 0 | S195: =IF(AND(M195=0,M194>0),-J195/_m/_r,0) -> 0 | T195: =IF(AND(N195=0,N194>0),I195/_m/_r,0) -> 0 | U195: =IF(AND(O195=0,O194>0),J195/_m/_r,0) -> 0 | V195: -314.1592654 | W195: 3.811510988 | X195: 0.07940252671 | Y195: -0.3226664596
D196: =IF(AND(M196=0,M197>0),"in1",IF(AND(M196=0,M195>0),"out1",IF(AND(N196=0,N197>0),"in2",IF(AND(N196=0,N195>0),"out2",IF(AND(O196=0,O197>0),"in3",IF(AND(O196=0,O195>0),"out3","")))))) ->  | E196: 0.0005 | F196: =F195+E195 -> 0.097 | G196: 3.885827256 | H196: 1.645484411 | I196: -0.3868348354 | J196: 0.1438847019 | K196: =SQRT(I196*I196+J196*J196) -> 0.4127275098 | L196: 0.1048004924 | M196: 0 | N196: 0 | O196: 0 | P196: 0 | Q196: 0 | R196: 0 | S196: 0 | T196: 0 | U196: 0 | V196: =IF(AND(S196=0,T196=0,U196=0),V195,S196+T196+U196) -> -314.1592654 | W196: 3.809903406 | X196: 0.07939131573 | Y196: -0.3226120172
E197: 0.0005 | F197: 0.0975 | G197: =G196+$E196*(23*I196-16*I195+5*I194)/12/_m -> 3.877768611 | H197: =H196+$E196*(23*J196-16*J195+5*J194)/12/_m -> 1.648480329 | I197: =I196+$E196*(23*X196-16*X195+5*X194)/12 -> -0.3867951426 | J197: =J196+$E196*(23*Y196-16*Y195+5*Y194)/12 -> 0.1437234095 | K197: 0.4126341003 | L197: 0.1047530604 | M197: 0 | N197: 0 | O197: 0 | P197: 0 | Q197: 0 | R197: 0 | S197: 0 | T197: 0 | U197: 0 | V197: -314.1592654 | W197: 3.808297227 | X197: 0.07938012157 | Y197: -0.3225576062
E198: 0.0005 | F198: 0.098 | G198: 3.869710792 | H198: 1.651472887 | I198: -0.3867554553 | J198: 0.1435621443 | K198: 0.4125407513 | L198: 0.1047056698 | M198: 0 | N198: 0 | O198: 0 | P198: 0 | Q198: 0 | R198: 0 | S198: 0 | T198: 0 | U198: 0 | V198: -314.1592654 | W198: 3.806692451 | X198: 0.07936894421 | Y198: -0.3225032268
E199: 0.0005 | F199: 0.0985 | G199: 3.8616538 | H199: 1.654462085 | I199: -0.3867157736 | J199: 0.1434009063 | K199: 0.4124474627 | L199: 0.1046583206 | M199: 0 | N199: 0 | O199: 0 | P199: 0 | Q199: 0 | R199: 0 | S199: 0 | T199: 0 | U199: 0 | V199: -314.1592654 | W199: 3.805089076 | X199: 0.07935778364 | Y199: -0.3224488788
E200: 0.0005 | F200: 0.099 | G200: 3.853597635 | H200: 1.657447925 | I200: -0.3866760975 | J200: 0.1432396954 | K200: 0.4123542345 | L200: 0.1046110127 | M200: 0 | N200: 0 | O200: 0 | P200: 0 | Q200: 0 | R200: 0 | S200: 0 | T200: 0 | U200: 0 | V200: -314.1592654 | W200: 3.803487102 | X200: 0.07934663986 | Y200: -0.3223945623
... 2050 more rows
